Workbook

Sheet Formulario 1.1- Ingresos E.P
A1: MINISTERIO DE HACIENDA Y CRÉDITO PÚBLICO
A2: Dirección General del Presupuesto Público Nacional
A3: Formulario 1.1 Anteproyecto Ingresos - Establecimientos Públicos
B5: TIPO DE INGRESO REGISTRADO | F5: ESTABLECIMIENTOS PÚBLICOS
B6: SECCIÓN
B7: UNIDAD EJECUTORA | F7: =IFERROR(VLOOKUP(F6,DESPLEGABLES!A2:B197,2,FALSE),"") -> 
F9: ANTEPROYECTO DE PRESUPUESTO DE INGRESO - VIGENCIA | G9: 2019 | I9: (diligenciar en pesos)
A19: Nivel | F19: Concepto | G19: Ingresos estimados (t) 1 | H19: Ingresos estimados (t+1) 2 | I19: Base legal/Justificación
A20: 1 | B20: 2 | C20: 3 | D20: 4 | E20: 5
A21: 1 | F21: Ingresos corrientes | G21: =G22 -> 125396336847 | H21: =H22 -> 128610598715
A22: 1 | B22: 02 | F22: Ingresos no tributarios | G22: =G23+G47+G53+G55+G58+G33 -> 125396336847 | H22: =H23+H47+H53+H55+H58+H33 -> 128610598715
A23: 1 | B23: 02 | C23: 1 | F23: Contribuciones | G23: =SUM(G24+G28+G30) -> 125396336847 | H23: =SUM(H24+H28+H30) -> 128610598715
A24: 1 | B24: 02 | C24: 1 | D24: 01 | F24: Contribuciones sociales | G24: =SUM(G25:G27) -> 0 | H24: =SUM(H25:H27) -> 0
A25: 1 | B25: 02 | C25: 1 | D25: 01 | E25: =IFERROR(VLOOKUP(F25,DESPLEGABLES!J2:K4,2,FALSE),"") -> 
A26: 1 | B26: 02 | C26: 1 | D26: 01 | E26: =IFERROR(VLOOKUP(F26,DESPLEGABLES!J2:K4,2,FALSE),"") -> 
A27: 1 | B27: 02 | C27: 1 | D27: 01 | E27: =IFERROR(VLOOKUP(F27,DESPLEGABLES!J2:K4,2,FALSE),"") -> 
A28: 1 | B28: 02 | C28: 1 | D28: 02 | F28: Contribuciones asociadas a la nómina | G28: =G29 -> 0 | H28: =H29 -> 0
A29: 1 | B29: 02 | C29: 1 | D29: 02 | E29: =IFERROR(VLOOKUP(F29,DESPLEGABLES!J7:K9,2,FALSE),"") -> 
A30: 1 | B30: 02 | C30: 1 | D30: 04 | F30: Contribuciones diversas | G30: =SUM(G31:G32) -> 125396336847 | H30: =SUM(H31:H32) -> 128610598715
A31: 1 | B31: 02 | C31: 1 | D31: 04 | E31: =IFERROR(VLOOKUP(F31,DESPLEGABLES!S2:T13,2,FALSE),"") -> 04 | F31: Contribución - Superintendencia de Sociedades | G31: 125396336847 | H31: 128610598715
A32: 1 | B32: 02 | C32: 1 | D32: 04 | E32: =IFERROR(VLOOKUP(F32,DESPLEGABLES!S2:T13,2,FALSE),"") -> 
A33: 1 | B33: 02 | C33: 2 | F33: Tasas y derechos administrativos | G33: =SUM(G34:G46) -> 0 | H33: =SUM(H34:H46) -> 0
A34: 1 | B34: 02 | C34: 2 | D34: =IFERROR(VLOOKUP(F34,DESPLEGABLES!V1:W52,2,FALSE),"") -> 
A35: 1 | B35: 02 | C35: 2 | D35: =IFERROR(VLOOKUP(F35,DESPLEGABLES!V1:W52,2,FALSE),"") -> 
A36: 1 | B36: 02 | C36: 2 | D36: =IFERROR(VLOOKUP(F36,DESPLEGABLES!V1:W52,2,FALSE),"") -> 
A37: 1 | B37: 02 | C37: 2 | D37: =IFERROR(VLOOKUP(F37,DESPLEGABLES!V1:W52,2,FALSE),"") -> 
A38: 1 | B38: 02 | C38: 2 | D38: =IFERROR(VLOOKUP(F38,DESPLEGABLES!V1:W52,2,FALSE),"") -> 
A39: 1 | B39: 02 | C39: 2 | D39: =IFERROR(VLOOKUP(F39,DESPLEGABLES!V1:W52,2,FALSE),"") -> 
A40: 1 | B40: 02 | C40: 2 | D40: =IFERROR(VLOOKUP(F40,DESPLEGABLES!V1:W52,2,FALSE),"") -> 
A41: 1 | B41: 02 | C41: 2 | D41: =IFERROR(VLOOKUP(F41,DESPLEGABLES!V1:W52,2,FALSE),"") -> 
A42: 1 | B42: 02 | C42: 2 | D42: =IFERROR(VLOOKUP(F42,DESPLEGABLES!V1:W52,2,FALSE),"") -> 
A43: 1 | B43: 02 | C43: 2 | D43: =IFERROR(VLOOKUP(F43,DESPLEGABLES!V1:W52,2,FALSE),"") -> 
A44: 1 | B44: 02 | C44: 2 | D44: =IFERROR(VLOOKUP(F44,DESPLEGABLES!V1:W52,2,FALSE),"") -> 
A45: 1 | B45: 02 | C45: 2 | D45: =IFERROR(VLOOKUP(F45,DESPLEGABLES!V1:W52,2,FALSE),"") -> 
A46: 1 | B46: 02 | C46: 2
A47: 1 | B47: 02 | C47: 3 | F47: Multas, sanciones e intereses de mora | G47: =G48+G52 -> 0 | H47: =H48+H52 -> 0
A48: 1 | B48: 02 | C48: 3 | D48: 01 | F48: Multas y sanciones | G48: =SUM(G49:G51) -> 0 | H48: =SUM(H49:H51) -> 0
A49: 1 | B49: 02 | C49: 3 | D49: 01 | E49: =IFERROR(VLOOKUP(F49,DESPLEGABLES!G14:H25,2,FALSE),"") -> 
A50: 1 | B50: 02 | C50: 3 | D50: 01 | E50: =IFERROR(VLOOKUP(F50,DESPLEGABLES!G14:H25,2,FALSE),"") -> 
A51: 1 | B51: 02 | C51: 3 | D51: 01 | E51: =IFERROR(VLOOKUP(F51,DESPLEGABLES!G14:H25,2,FALSE),"") -> 
A52: 1 | B52: 02 | C52: 3 | D52: 02 | F52: Intereses de mora
A53: 1 | B53: 02 | C53: 4 | F53: Derechos económicos por uso de recursos naturales | G53: =G54 -> 0 | H53: =H54 -> 0
A54: 1 | B54: 02 | C54: 4 | D54: =IFERROR(VLOOKUP(F54,DESPLEGABLES!Y1:Z5,2,FALSE),"") -> 
A55: 1 | B55: 02 | C55: 5 | F55: Venta de bienes y servicios | G55: =SUM(G56:G57) -> 0 | H55: =SUM(H56:H57) -> 0
A56: 1 | B56: 02 | C56: 5 | D56: 01 | F56: Ventas de establecimiento de mercado
A57: 1 | B57: 02 | C57: 5 | D57: 02 | F57: Ventas incidentales de establecimiento no de mercado
A58: 1 | B58: 02 | C58: 6 | F58: Transferencias corrientes | G58: =G59+G60+G61+G62+G65+G67+G66 -> 0 | H58: =H59+H60+H61+H62+H65+H67+H66 -> 0
A59: 1 | B59: 02 | C59: 6 | D59: 01 | F59: Indemnizaciones relacionadas con seguros no de vida
A60: 1 | B60: 02 | C60: 6 | D60: 02 | F60: Sentencias y conciliaciones
A61: 1 | B61: 02 | C61: 6 | D61: 04 | F61: Devolución IVA - Instituciones de Educación Superior
A62: 1 | B62: 02 | C62: 6 | D62: 05 | F62: Transferencias de otras unidades de gobierno | G62: =G63+G64 -> 0 | H62: =H63+H64 -> 0
A63: 1 | B63: 02 | C63: 6 | D63: 05 | E63: 01 | F63: Aportes Nación
A64: 1 | B64: 02 | C64: 6 | D64: 05 | E64: 02 | F64: Otras unidades de gobierno
A65: 1 | B65: 02 | C65: 6 | D65: 07 | F65: Recursos por bienes mostrencos y vocaciones hereditarias
A66: 1 | B66: 02 | C66: 6 | D66: 09 | F66: Compensación UPC- SSS
A67: 1 | B67: 02 | C67: 6
A68: 2 | F68: Recursos de capital | G68: =+G69+G72+G75+G78+G86+G89+G74+G93+G94+G95+G97 -> 10045740000 | H68: =+H69+H72+H75+H78+H86+H89+H74+H93+H94+H95+H97 -> 12024000000
A69: 2 | B69: 01 | F69: Disposición de activos | G69: =SUM(G70:G71) -> 0 | H69: =SUM(H70:H71) -> 0
A70: 2 | B70: 01 | C70: 1 | F70: Disposición de activos financieros
A71: 2 | B71: 01 | C71: 2 | F71: Disposición de activos no financieros
A72: 2 | B72: 02 | F72: Excedentes financieros | G72: =G73 -> 0 | H72: =H73 -> 0
A73: 2 | B73: 02 | C73: 1 | F73: Establecimientos Públicos
A74: 2 | B74: 03 | F74: Dividendos y utilidades por otras inversiones de capital
A75: 2 | B75: 05 | F75: Rendimientos financieros | G75: =SUM(G76:G77) -> 0 | H75: =SUM(H76:H77) -> 0
A76: 2 | B76: 05 | C76: 1 | F76: Recursos de la entidad
A77: 2 | B77: 05 | C77: 2 | F77: Intereses por préstamos
A78: 2 | B78: 06 | F78: Recursos de crédito externo | G78: =+SUM(G79:G85) -> 0 | H78: =+SUM(H79:H85) -> 0
A79: 2 | B79: 06 | C79: 1 | F79: Bancos comerciales
A80: 2 | B80: 06 | C80: 2 | F80: Inversionistas
A81: 2 | B81: 06 | C81: 3 | F81: Entidades de fomento
A82: 2 | B82: 06 | C82: 4 | F82: Gobiernos
A83: 2 | B83: 06 | C83: 5 | F83: Organismos multilaterales
A84: 2 | B84: 06 | C84: 6 | F84: Proveedores
A85: 2 | B85: 06 | C85: 7 | F85: Otras instituciones financieras
A86: 2 | B86: 07 | F86: Recursos de crédito interno | G86: =+SUM(G87:G88) -> 0 | H86: =+SUM(H87:H88) -> 0
A87: 2 | B87: 07 | C87: 2 | F87: Operaciones financieras ordinarias
A88: 2 | B88: 07 | C88: 3 | F88: Entidades financieras
A89: 2 | B89: 08 | F89: Transferencias de capital | G89: =+SUM(G90:G92) -> 0 | H89: =+SUM(H90:H92) -> 0
A90: 2 | B90: 08 | C90: 1 | F90: Donaciones
A91: 2 | B91: 08 | C91: 2 | F91: Indemnizaciones relacionadas con seguros no de vida
A92: 2 | B92: 08 | C92: 3 | F92: Reembolso fondo de contingencias
A93: 2 | B93: 09 | F93: Recuperación de cartera - Préstamos | G93: 1423840000 | H93: 2589800000
A94: 2 | B94: 10 | F94: Recursos del balance | G94: 8621900000 | H94: 9434200000
A95: 2 | B95: 12 | F95: Recursos de terceros en consignación | G95: =G96 -> 0 | H95: =H96 -> 0
A96: 2 | B96: 12 | C96: 2 | F96: Depósito en prenda
A97: 2 | B97: 13 | F97: Reintegros y otros recursos no apropiados
A98: TOTAL INGRESOS VIGENCIA | G98: =G68+G21 -> 135442076847 | H98: =H68+H21 -> 140634598715
F102: RESUMEN PRESUPUESTO DE INGRESOS
F103: Concepto | G103: Ingresos estimados (t) 1 | H103: Ingresos estimados (t+1) 2
F104: RECURSOS PROPIOS DEL ESTABLECIMIENTO PÚBLICO | G104: =G105+G106 -> 135442076847 | H104: =H105+H106 -> 140634598715
F105: Ingresos Corrientes | G105: =G21 -> 125396336847 | H105: =H21 -> 128610598715
F106: Recursos de Capital | G106: =G68 -> 10045740000 | H106: =H68 -> 12024000000

Sheet Formulario 1.1A - Cálculo I-E.P
A1: MINISTERIO DE HACIENDA Y CRÉDITO PÚBLICO
A2: Dirección General del Presupuesto Público Nacional
A3: Formulario 1.1A Cálculo de ingresos corrientes por productos - Establecimientos Públicos
A5: SECCIÓN
A6: UNIDAD EJECUTORA | B6: =IFERROR(VLOOKUP(B5,DESPLEGABLES!A2:B197,2,FALSE),"") -> 
K7: (diligenciar en pesos)
A8: CÁLCULO DE LOS INGRESOS CORRIENTES POR PRODUCTO - VIGENCIA | C8: 2019
A10: Producto | B10: Clasificación Central de Producto | D10: Vigencia anterior (t-1) | G10: Vigencia en curso (t) | J10: Próxima Vigencia (t+1)
C11: Unidad de | D11: Cantidades | E11: Precio | F11: Ingreso Año | G11: Cantidades | H11: Precio | I11: Ingreso Año | J11: Cantidades | L11: Precio Promedio Unidad | N11: Ingreso Año | O11: Ingreso
C12: medida | D12: Año | E12: Promedio | G12: Año | H12: Promedio | J12: Factor de | K12: Cantidad | L12: Factor de | M12: Precio | O12: (t+1)
E13: Unidad | H13: Unidad | J13: Incremento | K13: Año | L13: Incremento | M13: Unidad | O13: Base Cero
A14: 1 | B14: 2 | C14: 3 | D14: 4 | E14: 5 | F14: 6=5X4 | G14: 7 | H14: 8 | I14: 9=7X8 | J14: 10 | K14: 11=7X10 | L14: 12 | M14: 13=8X12 | N14: 14=11X13 | O14: 15=8X11
A15: 1.02. INGRESOS NO TRIBUTARIOS | F15: =F16+F29+F44+F52+F55+F106 -> 0 | I15: =I16+I29+I44+I52+I55+I106 -> 0 | N15: =N16+N29+N44+N52+N55+N106 -> 0 | O15: =O16+O29+O44+O52+O55+O106 -> 0
A16: 1.02.1. CONTRIBUCIONES | F16: =F17+F22+F25 -> 0 | I16: =I17+I22+I25 -> 0 | N16: =N17+N22+N25 -> 0 | O16: =O17+O22+O25 -> 0
A17: 1.02.1.01. Contribuciones sociales | F17: =F21 -> 0 | I17: =I21 -> 0 | N17: =N21 -> 0 | O17: =O21 -> 0
F18: =E18*D18 -> 0 | I18: =H18*G18 -> 0 | K18: =G18*J18 -> 0 | M18: =H18*L18 -> 0 | N18: =K18*M18 -> 0 | O18: =H18*K18 -> 0
F19: =E19*D19 -> 0 | I19: =H19*G19 -> 0 | K19: =G19*J19 -> 0 | M19: =H19*L19 -> 0 | N19: =K19*M19 -> 0 | O19: =H19*K19 -> 0
F20: =E20*D20 -> 0 | I20: =H20*G20 -> 0 | K20: =G20*J20 -> 0 | M20: =H20*L20 -> 0 | N20: =K20*M20 -> 0 | O20: =H20*K20 -> 0
A21: Subtotal producto 1 | D21: =SUM(D18:D20) -> 0 | F21: =SUM(F18:F20) -> 0 | G21: =SUM(G18:G20) -> 0 | I21: =SUM(I18:I20) -> 0 | K21: =SUM(K18:K20) -> 0 | N21: =SUM(N18:N20) -> 0 | O21: =SUM(O18:O20) -> 0
A22: 1.02.1.02. Contribuciones asociadas a la nómina | F22: =F24 -> 0 | I22: =I24 -> 0 | N22: =N24 -> 0 | O22: =O24 -> 0
F23: =E23*D23 -> 0 | I23: =H23*G23 -> 0 | K23: =G23*J23 -> 0 | M23: =H23*L23 -> 0 | N23: =K23*M23 -> 0 | O23: =H23*K23 -> 0
A24: Subtotal producto 2 | D24: =D23 -> 0 | F24: =F23 -> 0 | G24: =G23 -> 0 | I24: =I23 -> 0 | K24: =K23 -> 0 | N24: =N23 -> 0 | O24: =O23 -> 0
A25: 1.02.1.04. Contribuciones diversas | F25: =F28 -> 0 | I25: =I28 -> 0 | N25: =N28 -> 0 | O25: =O28 -> 0
F26: =E26*D26 -> 0 | I26: =H26*G26 -> 0 | K26: =G26*J26 -> 0 | M26: =H26*L26 -> 0 | N26: =K26*M26 -> 0 | O26: =H26*K26 -> 0
F27: =E27*D27 -> 0 | I27: =H27*G27 -> 0 | K27: =G27*J27 -> 0 | M27: =H27*L27 -> 0 | N27: =K27*M27 -> 0 | O27: =H27*K27 -> 0
A28: Subtotal producto 3 | D28: =SUM(D26:D27) -> 0 | F28: =SUM(F26:F27) -> 0 | G28: =SUM(G26:G27) -> 0 | I28: =SUM(I26:I27) -> 0 | K28: =SUM(K26:K27) -> 0 | N28: =SUM(N26:N27) -> 0 | O28: =SUM(O26:O27) -> 0
A29: 1.02.2. TASAS Y DERECHOS ADMINISTRATIVOS | F29: =F43 -> 0 | I29: =I43 -> 0 | N29: =N43 -> 0 | O29: =O43 -> 0
F30: =E30*D30 -> 0 | I30: =H30*G30 -> 0 | K30: =G30*J30 -> 0 | M30: =H30*L30 -> 0 | N30: =K30*M30 -> 0 | O30: =H30*K30 -> 0
F31: 0 | I31: =H31*G31 -> 0 | K31: =G31*J31 -> 0 | M31: =H31*L31 -> 0 | N31: =K31*M31 -> 0 | O31: =H31*K31 -> 0
F32: 0 | I32: =H32*G32 -> 0 | K32: =G32*J32 -> 0 | M32: =H32*L32 -> 0 | N32: =K32*M32 -> 0 | O32: =H32*K32 -> 0
F33: 0 | I33: 0 | K33: 0 | M33: 0 | N33: 0 | O33: =H33*K33 -> 0
F34: 0 | I34: 0 | K34: 0 | M34: 0 | N34: 0 | O34: 0
F35: 0 | I35: 0 | K35: 0 | M35: 0 | N35: 0 | O35: 0
F36: 0 | I36: 0 | K36: 0 | M36: 0 | N36: 0 | O36: 0
F37: 0 | I37: 0 | K37: 0 | M37: 0 | N37: 0 | O37: 0
F38: 0 | I38: 0 | K38: 0 | M38: 0 | N38: 0 | O38: 0
F39: 0 | I39: 0 | K39: 0 | M39: 0 | N39: 0 | O39: 0
F40: =E40*D40 -> 0 | I40: =H40*G40 -> 0 | K40: =G40*J40 -> 0 | M40: =H40*L40 -> 0 | N40: =K40*M40 -> 0 | O40: =H40*K40 -> 0
F41: 0 | I41: 0 | K41: 0 | M41: 0 | N41: 0 | O41: 0
F42: 0 | I42: =H42*G42 -> 0 | K42: =G42*J42 -> 0 | M42: =H42*L42 -> 0 | N42: =K42*M42 -> 0 | O42: =H42*K42 -> 0
A43: Subtotal producto 1 | D43: =SUM(D30:D42) -> 0 | F43: =SUM(F30:F42) -> 0 | G43: =SUM(G30:G42) -> 0 | I43: =SUM(I30:I42) -> 0 | K43: =SUM(K30:K42) -> 0 | N43: =SUM(N30:N42) -> 0 | O43: =SUM(O30:O42) -> 0
A44: 1.02.3. MULTAS, SANCIONES E INTERESES DE MORA | F44: =F45+F50 -> 0 | I44: =I45+I50 -> 0 | N44: =N45+N50 -> 0 | O44: =O45*O50 -> 0
A45: 1.02.3.01. Multas y sanciones | F45: =F49 -> 0 | I45: =I49 -> 0 | N45: =N49 -> 0 | O45: =O49 -> 0
F46: =E46*D46 -> 0 | I46: =H46*G46 -> 0 | K46: =G46*J46 -> 0 | M46: =H46*L46 -> 0 | N46: =K46+M46 -> 0 | O46: =H46*K46 -> 0
F47: =E47*D47 -> 0 | I47: =H47*G47 -> 0 | K47: =G47*J47 -> 0 | M47: =H47*L47 -> 0 | N47: =K47*M47 -> 0 | O47: =H47*K47 -> 0
F48: =E48*D48 -> 0 | I48: =H48*G48 -> 0 | K48: =G48*J48 -> 0 | M48: =H48*L48 -> 0 | N48: =K48*M48 -> 0 | O48: =H48*K48 -> 0
A49: Subtotal producto 1 | D49: =SUM(D46:D48) -> 0 | F49: =SUM(F46:F48) -> 0 | G49: =SUM(G46:G48) -> 0 | I49: =SUM(I46:I48) -> 0 | K49: =SUM(K46:K48) -> 0 | N49: =SUM(N46:N48) -> 0 | O49: =SUM(O46:O48) -> 0
A50: 1.02.3.02. Intereses de mora | F50: =E50*D50 -> 0 | I50: =H50*G50 -> 0 | K50: =G50*J50 -> 0 | M50: =H50*L50 -> 0 | N50: =M50*K50 -> 0 | O50: =H50*K50 -> 0
A51: Subtotal producto 2 | D51: =D50 -> 0 | F51: =F50 -> 0 | G51: =G50 -> 0 | I51: =I50 -> 0 | K51: =K50 -> 0 | N51: =N50 -> 0 | O51: =O50 -> 0
A52: 1.02.4. DERECHOS ECONÓMICOS POR USO DE RECURSOS NATURALES | F52: =F54 -> 0 | I52: =I54 -> 0 | N52: =N54 -> 0 | O52: =O54 -> 0
F53: =E53*D53 -> 0 | I53: =H53*G53 -> 0 | K53: =G53*J53 -> 0 | M53: =H53*L53 -> 0 | N53: =K53*M53 -> 0 | O53: =H53*K53 -> 0
A54: Subtotal producto 1 | D54: =D53 -> 0 | F54: =F53 -> 0 | G54: =G53 -> 0 | I54: =I53 -> 0 | K54: =K53 -> 0 | N54: =N53 -> 0 | O54: =O53 -> 0
A55: 1.02.5. VENTA DE BIENES Y SERVICIOS | F55: =F56+F81 -> 0 | I55: =I56+I81 -> 0 | N55: =N56+N81 -> 0 | O55: =O56+O81 -> 0
A56: 1.02.5.01. Ventas de establecimiento de mercado | F56: =F64+F72+F80 -> 0 | I56: =I64+I72+I80 -> 0 | N56: =N64+N72+N80 -> 0 | O56: =O64+O72+O80 -> 0
F57: =E57*D57 -> 0 | I57: =H57*G57 -> 0 | K57: =G57*J57 -> 0 | M57: =H57*L57 -> 0 | N57: =K57*M57 -> 0 | O57: =H57*K57 -> 0
F58: =E58*D58 -> 0 | I58: =H58*G58 -> 0 | K58: =G58*J58 -> 0 | M58: =H58*L58 -> 0 | N58: =K58*M58 -> 0 | O58: =H58*K58 -> 0
F59: =E59*D59 -> 0 | I59: =H59*G59 -> 0 | K59: =G59*J59 -> 0 | M59: =H59*L59 -> 0 | N59: =K59*M59 -> 0 | O59: =H59*K59 -> 0
F60: 0 | I60: 0 | K60: 0 | M60: 0 | N60: 0 | O60: 0
F61: 0 | I61: 0 | K61: 0 | M61: 0 | N61: 0 | O61: 0
F62: 0 | I62: 0 | K62: 0 | M62: 0 | N62: 0 | O62: 0
F63: =E63*D63 -> 0 | I63: =H63*G63 -> 0 | K63: =G63*J63 -> 0 | M63: 0 | N63: 0 | O63: 0
A64: Subtotal producto 1 | D64: =SUM(D57:D63) -> 0 | F64: =SUM(F57:F63) -> 0 | G64: =SUM(G57:G63) -> 0 | I64: =SUM(I57:I63) -> 0 | K64: =SUM(K57:K63) -> 0 | N64: =SUM(N57:N63) -> 0 | O64: =SUM(O57:O63) -> 0
F65: =E65*D65 -> 0 | I65: =H65*G65 -> 0 | K65: =G65*J65 -> 0 | M65: =H65*L65 -> 0 | N65: =K65*M65 -> 0 | O65: =H65*K65 -> 0
F66: =E66*D66 -> 0 | I66: =H66*G66 -> 0 | K66: =G66*J66 -> 0 | M66: =H66*L66 -> 0 | N66: =K66*M66 -> 0 | O66: =H66*K66 -> 0
F67: =E67*D67 -> 0 | I67: =H67*G67 -> 0 | K67: =G67*J67 -> 0 | M67: =H67*L67 -> 0 | N67: =K67*M67 -> 0 | O67: =H67*K67 -> 0
F68: 0 | I68: 0 | K68: 0 | M68: 0 | N68: 0 | O68: 0
F69: 0 | I69: 0 | K69: 0 | M69: 0 | N69: 0 | O69: 0
F70: 0 | I70: 0 | K70: 0 | M70: 0 | N70: 0 | O70: 0
F71: =E71*D71 -> 0 | I71: =H71*G71 -> 0 | K71: =G71*J71 -> 0 | M71: 0 | N71: 0 | O71: 0
A72: Subtotal producto 2 | D72: =SUM(D65:D71) -> 0 | F72: =SUM(F65:F71) -> 0 | G72: =SUM(G65:G71) -> 0 | I72: =SUM(I65:I71) -> 0 | K72: =SUM(K65:K71) -> 0 | N72: =SUM(N65:N71) -> 0 | O72: =SUM(O65:O71) -> 0
F73: =E73*D73 -> 0 | I73: =H73*G73 -> 0 | K73: =G73*J73 -> 0 | M73: =H73*L73 -> 0 | N73: =K73*M73 -> 0 | O73: =H73*K73 -> 0
F74: =E74*D74 -> 0 | I74: =H74*G74 -> 0 | K74: =G74*J74 -> 0 | M74: =H74*L74 -> 0 | N74: =K74*M74 -> 0 | O74: =H74*K74 -> 0
F75: =E75*D75 -> 0 | I75: =H75*G75 -> 0 | K75: =G75*J75 -> 0 | M75: =H75*L75 -> 0 | N75: =K75*M75 -> 0 | O75: =H75*K75 -> 0
F76: 0 | I76: 0 | K76: 0 | M76: 0 | N76: 0 | O76: 0
F77: 0 | I77: 0 | K77: 0 | M77: 0 | N77: 0 | O77: 0
F78: 0 | I78: 0 | K78: 0 | M78: 0 | N78: 0 | O78: 0
F79: =E79*D79 -> 0 | I79: =H79*G79 -> 0 | K79: =G79*J79 -> 0 | M79: 0 | N79: 0 | O79: 0
A80: Subtotal producto 3 | D80: =SUM(D73:D79) -> 0 | F80: =SUM(F73:F79) -> 0 | G80: =SUM(G73:G79) -> 0 | I80: =SUM(I73:I79) -> 0 | K80: =SUM(K73:K79) -> 0 | N80: =SUM(N73:N79) -> 0 | O80: =SUM(O73:O79) -> 0
A81: 1.02.5.02. Ventas incidentales de establecimiento no de mercado | F81: =F89+F97+F105 -> 0 | I81: =I89+I97+I105 -> 0 | N81: =N89+N97+N105 -> 0 | O81: =O89+O97+O105 -> 0
F82: =E82*D82 -> 0 | I82: =H82*G82 -> 0 | K82: =G82*J82 -> 0 | M82: =H82*L82 -> 0 | N82: =K82*M82 -> 0 | O82: =H82*K82 -> 0
F83: =E83*D83 -> 0 | I83: =H83*G83 -> 0 | K83: =G83*J83 -> 0 | M83: =H83*L83 -> 0 | N83: =K83*M83 -> 0 | O83: =H83*K83 -> 0
F84: =E84*D84 -> 0 | I84: =H84*G84 -> 0 | K84: =G84*J84 -> 0 | M84: =H84*L84 -> 0 | N84: =K84*M84 -> 0 | O84: =H84*K84 -> 0
F85: 0 | I85: 0 | K85: 0 | M85: 0 | N85: 0 | O85: 0
F86: 0 | I86: 0 | K86: 0 | M86: 0 | N86: 0 | O86: 0
F87: 0 | I87: 0 | K87: 0 | M87: 0 | N87: 0 | O87: 0
F88: =E88*D88 -> 0 | I88: =H88*G88 -> 0 | K88: =G88*J88 -> 0 | M88: 0 | N88: 0 | O88: 0
A89: Subtotal producto 1 | D89: =SUM(D82:D88) -> 0 | F89: =SUM(F82:F88) -> 0 | G89: =SUM(G82:G88) -> 0 | I89: =SUM(I82:I88) -> 0 | K89: =SUM(K82:K88) -> 0 | N89: =SUM(N82:N88) -> 0 | O89: =SUM(O82:O88) -> 0
F90: =E90*D90 -> 0 | I90: =H90*G90 -> 0 | K90: =G90*J90 -> 0 | M90: =H90*L90 -> 0 | N90: =K90*M90 -> 0 | O90: =H90*K90 -> 0
F91: =E91*D91 -> 0 | I91: =H91*G91 -> 0 | K91: =G91*J91 -> 0 | M91: =H91*L91 -> 0 | N91: =K91*M91 -> 0 | O91: =H91*K91 -> 0
F92: =E92*D92 -> 0 | I92: =H92*G92 -> 0 | K92: =G92*J92 -> 0 | M92: =H92*L92 -> 0 | N92: =K92*M92 -> 0 | O92: =H92*K92 -> 0
F93: 0 | I93: 0 | K93: 0 | M93: 0 | N93: 0 | O93: 0
F94: 0 | I94: 0 | K94: 0 | M94: 0 | N94: 0 | O94: 0
F95: 0 | I95: 0 | K95: 0 | M95: 0 | N95: 0 | O95: 0
F96: =E96*D96 -> 0 | I96: =H96*G96 -> 0 | K96: =G96*J96 -> 0 | M96: 0 | N96: 0 | O96: 0
A97: Subtotal producto 2 | D97: =SUM(D90:D96) -> 0 | F97: =SUM(F90:F96) -> 0 | G97: =SUM(G90:G96) -> 0 | I97: =SUM(I90:I96) -> 0 | K97: =SUM(K90:K96) -> 0 | N97: =SUM(N90:N96) -> 0 | O97: =SUM(O90:O96) -> 0
F98: =E98*D98 -> 0 | I98: =H98*G98 -> 0 | K98: =G98*J98 -> 0 | M98: =H98*L98 -> 0 | N98: =K98*M98 -> 0 | O98: =H98*K98 -> 0
F99: 0 | I99: =H99*G99 -> 0 | K99: =G99*J99 -> 0 | M99: =H99*L99 -> 0 | N99: =K99*M99 -> 0 | O99: =H99*K99 -> 0
F100: 0 | I100: =H100*G100 -> 0 | K100: =G100*J100 -> 0 | M100: =H100*L100 -> 0 | N100: =K100*M100 -> 0 | O100: =H100*K100 -> 0
F101: 0 | I101: 0 | K101: 0 | M101: 0 | N101: 0 | O101: 0
F102: 0 | I102: 0 | K102: 0 | M102: 0 | N102: 0 | O102: 0
F103: 0 | I103: 0 | K103: 0 | M103: 0 | N103: 0 | O103: 0
F104: 0 | I104: =H104*G104 -> 0 | K104: =G104*J104 -> 0 | M104: 0 | N104: 0 | O104: 0
A105: Subtotal producto 3 | D105: =SUM(D98:D104) -> 0 | F105: =SUM(F98:F104) -> 0 | G105: =SUM(G98:G104) -> 0 | I105: =SUM(I98:I104) -> 0 | K105: =SUM(K98:K104) -> 0 | N105: =SUM(N98:N104) -> 0 | O105: =SUM(O98:O104) -> 0
A106: 1.02.6. TRANSFERENCIAS CORRIENTES | F106: =F112 -> 0 | I106: =I112 -> 0 | N106: =N112 -> 0 | O106: =O112 -> 0
F107: =E107*D107 -> 0 | I107: =H107*G107 -> 0 | K107: =G107*J107 -> 0 | M107: =H107*L107 -> 0 | N107: =K107*M107 -> 0 | O107: =H107*K107 -> 0
F108: =E108*D108 -> 0 | I108: =H108*G108 -> 0 | K108: =G108*J108 -> 0 | M108: =H108*L108 -> 0 | N108: =K108*M108 -> 0 | O108: =H108*K108 -> 0
F109: =E109*D109 -> 0 | I109: =H109*G109 -> 0 | K109: =G109*J109 -> 0 | M109: =H109*L109 -> 0 | N109: =K109*M109 -> 0 | O109: =H109*K109 -> 0
F110: =E110*D110 -> 0 | I110: =H110*G110 -> 0 | K110: =G110*J110 -> 0 | M110: =H110*L110 -> 0 | N110: =K110*M110 -> 0 | O110: =H110*K110 -> 0
F111: =E111*D111 -> 0 | I111: =H111*G111 -> 0 | K111: =G111*J111 -> 0 | M111: =H111*L111 -> 0 | N111: =K111*M111 -> 0 | O111: =H111*K111 -> 0
A112: Subtotal producto 1 | D112: =SUM(D107:D111) -> 0 | F112: =SUM(F107:F111) -> 0 | G112: =SUM(G107:G111) -> 0 | I112: =SUM(I107:I111) -> 0 | K112: =SUM(K107:K111) -> 0 | N112: =SUM(N107:N111) -> 0 | O112: =SUM(O107:O111) -> 0

Sheet Formulario 1.2 - Ingresos F.E
B1: MINISTERIO DE HACIENDA Y CRÉDITO PÚBLICO
B2: Dirección General del Presupuesto Público Nacional
B3: Formulario 1.2. Anteproyecto Ingresos - Fondos Especiales
B5: TIPO DE INGRESO REGISTRADO | F5: FONDOS ESPECIALES - CONTRIBUCIONES PARAFISCALES DE LA NACIÓN
B6: SECCIÓN
B7: UNIDAD EJECUTORA | F7: =IFERROR(VLOOKUP(F6,DESPLEGABLES!A2:B197,2,FALSE),"") -> 
B8: NOMBRE DEL FONDO ESPECIAL | G8: CÓDIGO SIIF | H8: =IFERROR(VLOOKUP(F8,DESPLEGABLES!D1:E69,2,FALSE),"") -> 
F9: (SI EL NOMBRE DEL FONDO ESPECIAL NO APARECE EN LA LISTA DESPLEGABLE POR FAVOR REGÍSTRELO AQUÍ)
C11: ANTEPROYECTO DE PRESUPUESTO DE INGRESOS - VIGENCIA | G11: 2019 | I11: (diligenciar en pesos)
A21: Nivel | F21: Concepto | G21: Ingresos estimados (t) 1 | H21: Ingresos estimados (t+1) 2 | I21: Base legal/Justificación
A22: 1 | B22: 2 | C22: 3 | D22: 4 | E22: 5
A23: 1 | F23: Ingresos corrientes | G23: =G27+G24 -> 0 | H23: =H27+H24 -> 0
A24: 1 | B24: 01 | F24: Ingresos tributarios | G24: =G25 -> 0 | H24: =H25 -> 0
A25: 1 | B25: 01 | C25: 2 | F25: Impuestos indirectos | G25: =G26 -> 0 | H25: =H26 -> 0
A26: 1 | B26: 01 | C26: 2 | D26: =IFERROR(VLOOKUP(F26,DESPLEGABLES!G1:H6,2,FALSE),"") -> 
A27: 1 | B27: 02 | F27: Ingresos no tributarios | G27: =G28+G47+G53+G55+G58+G44 -> 0 | H27: =H28+H47+H53+H55+H58+H44 -> 0
A28: 1 | B28: 02 | C28: 1 | F28: Contribuciones | G28: =G29+G32+G34+G37 -> 0 | H28: =H29+H32+H34+H37 -> 0
A29: 1 | B29: 02 | C29: 1 | D29: 01 | F29: Contribuciones sociales | G29: =SUM(G30:G31) -> 0 | H29: =SUM(H30:H31) -> 0
A30: 1 | B30: 02 | C30: 1 | D30: 01 | E30: =IFERROR(VLOOKUP(F30,DESPLEGABLES!M2:N3,2,FALSE),"") -> 
A31: 1 | B31: 02 | C31: 1 | D31: 01 | E31: =IFERROR(VLOOKUP(F31,DESPLEGABLES!M2:N3,2,FALSE),"") -> 
A32: 1 | B32: 02 | C32: 1 | D32: 02 | F32: Contribuciones asociadas a la nómina | G32: =G33 -> 0 | H32: =H33 -> 0
A33: 1 | B33: 02 | C33: 1 | D33: 02 | E33: =IFERROR(VLOOKUP(F33,DESPLEGABLES!M7:N8,2,FALSE),"") -> 
A34: 1 | B34: 02 | C34: 1 | D34: 03 | F34: Contribuciones especiales | G34: =G36 -> 0 | H34: =H36 -> 0
A35: 1 | B35: 02 | C35: 1 | D35: 03 | E35: =IFERROR(VLOOKUP(F35,DESPLEGABLES!M13:N15,2,FALSE),"") -> 
A36: 1 | B36: 02 | C36: 1 | D36: 03 | E36: =IFERROR(VLOOKUP(F36,DESPLEGABLES!M13:N15,2,FALSE),"") -> 
A37: 1 | B37: 02 | C37: 1 | D37: 04 | F37: Contribuciones diversas | G37: =SUM(G38:G43) -> 0 | H37: =SUM(H38:H43) -> 0
A38: 1 | B38: 02 | C38: 1 | D38: 04 | E38: =IFERROR(VLOOKUP(F38,DESPLEGABLES!P2:Q32,2,FALSE),"") -> 
A39: 1 | B39: 02 | C39: 1 | D39: 04 | E39: =IFERROR(VLOOKUP(F39,DESPLEGABLES!P2:Q32,2,FALSE),"") -> 
A40: 1 | B40: 02 | C40: 1 | D40: 04 | E40: =IFERROR(VLOOKUP(F40,DESPLEGABLES!P2:Q32,2,FALSE),"") -> 
A41: 1 | B41: 02 | C41: 1 | D41: 04 | E41: =IFERROR(VLOOKUP(F41,DESPLEGABLES!P2:Q32,2,FALSE),"") -> 
A42: 1 | B42: 02 | C42: 1 | D42: 04 | E42: =IFERROR(VLOOKUP(F42,DESPLEGABLES!P2:Q32,2,FALSE),"") -> 
A43: 1 | B43: 02 | C43: 1 | D43: 04
A44: 1 | B44: 02 | C44: 2 | F44: Tasas y derechos administrativos | G44: =SUM(G45:G46) -> 0 | H44: =SUM(H45:H46) -> 0
A45: 1 | B45: 02 | C45: 2 | D45: =IFERROR(VLOOKUP(F45,DESPLEGABLES!V55:W57,2,FALSE),"") -> 
A46: 1 | B46: 02 | C46: 2
A47: 1 | B47: 02 | C47: 3 | F47: Multas, sanciones e intereses de mora | G47: =G48+G52 -> 0 | H47: =H48+H52 -> 0
A48: 1 | B48: 02 | C48: 3 | D48: 01 | F48: Multas y sanciones | G48: =SUM(G49:G51) -> 0 | H48: =SUM(H49:H51) -> 0
A49: 1 | B49: 02 | C49: 3 | D49: 01 | E49: =IFERROR(VLOOKUP(F49,DESPLEGABLES!G14:H25,2,FALSE),"") -> 
A50: 1 | B50: 02 | C50: 3 | D50: 01 | E50: =IFERROR(VLOOKUP(F50,DESPLEGABLES!G14:H25,2,FALSE),"") -> 
A51: 1 | B51: 02 | C51: 3 | D51: 01 | E51: =IFERROR(VLOOKUP(F51,DESPLEGABLES!G14:H25,2,FALSE),"") -> 
A52: 1 | B52: 02 | C52: 3 | D52: 02 | F52: Intereses de mora
A53: 1 | B53: 02 | C53: 4 | F53: Derechos económicos por uso de recursos naturales | G53: =G54 -> 0 | H53: =H54 -> 0
A54: 1 | B54: 02 | C54: 4 | D54: 04 | F54: Regalías y compensaciones monetarias
A55: 1 | B55: 02 | C55: 5 | F55: Venta de bienes y servicios | G55: =SUM(G56:G57) -> 0 | H55: =SUM(H56:H57) -> 0
A56: 1 | B56: 02 | C56: 5 | D56: 01 | F56: Ventas de establecimiento de mercado
A57: 1 | B57: 02 | C57: 5 | D57: 02 | F57: Ventas incidentales de establecimiento no de mercado
A58: 1 | B58: 02 | C58: 6 | F58: Transferencias corrientes | G58: =G59+G60+G61+G62+G63+G65+G67+G66+G68 -> 0 | H58: =H59+H62+H60+H61+H63+H65+H67+H66+H68 -> 0
A59: 1 | B59: 02 | C59: 6 | D59: 01 | F59: Indemnizaciones relacionadas con seguros no de vida
A60: 1 | B60: 02 | C60: 6 | D60: 02 | F60: Sentencias y conciliaciones
A61: 1 | B61: 02 | C61: 6 | D61: 03 | F61: Prescripción de depósitos judiciales
A62: 1 | B62: 02 | C62: 6 | D62: 04 | F62: Devolución IVA - Instituciones de Educación Superior
A63: 1 | B63: 02 | C63: 6 | D63: 05 | F63: Transferencias de otras unidades de gobierno | G63: =G64 -> 0 | H63: =H64 -> 0
A64: 1 | B64: 02 | C64: 6 | D64: 05 | E64: 02 | F64: Otras unidades de gobierno
A65: 1 | B65: 02 | C65: 6 | D65: 06 | F65: Recursos de terceros en consignación
A66: 1 | B66: 02 | C66: 6 | D66: 08 | F66: Recursos por procesos de extinción de dominio
A67: 1 | B67: 02 | C67: 6 | D67: 09 | F67: Compensación UPC- SSS
A68: 1 | B68: 02 | C68: 6
A69: 2 | F69: Recursos de capital | G69: =G70+G73+G74+G77+G80+G81+G83 -> 0 | H69: =H70+H73+H74+H77+H80+H81+H83 -> 0
A70: 2 | B70: 01 | F70: Disposición de activos | G70: =SUM(G71:G72) -> 0 | H70: =SUM(H71:H72) -> 0
A71: 2 | B71: 01 | C71: 1 | F71: Disposición de activos financieros
A72: 2 | B72: 01 | C72: 2 | F72: Disposición de activos no financieros
A73: 2 | B73: 03 | F73: Dividendos y utilidades por otras inversiones de capital
A74: 2 | B74: 05 | F74: Rendimientos financieros | G74: =SUM(G75:G76) -> 0 | H74: =SUM(H75:H76) -> 0
A75: 2 | B75: 05 | C75: 1 | F75: Recursos de la entidad
A76: 2 | B76: 05 | C76: 2 | F76: Intereses por préstamos
A77: 2 | B77: 08 | F77: Transferencias de capital | G77: =+SUM(G78:G79) -> 0 | H77: =+SUM(H78:H79) -> 0
A78: 2 | B78: 08 | C78: 1 | F78: Donaciones
A79: 2 | B79: 08 | C79: 2 | F79: Indemnizaciones relacionadas con seguros no de vida
A80: 2 | B80: 09 | F80: Recuperación de cartera - Préstamos
A81: 2 | B81: 12 | F81: Recursos de terceros en consignación | G81: =G82 -> 0 | H81: =H82 -> 0
A82: 2 | B82: 12 | C82: 1 | F82: Ahorro voluntario de los trabajadores
A83: 2 | B83: 13 | F83: Reintegros y otros recursos no apropiados
A84: TOTAL INGRESOS VIGENCIA | G84: =G23+G69 -> 0 | H84: =H23+H69 -> 0
F88: RESUMEN PRESUPUESTO DE INGRESOS
F89: Concepto | G89: Ingresos estimados (t) 1 | H89: Ingresos estimados (t+1) 2
F90: RECURSOS DEL FONDO ESPECIAL | G90: =G91+G92 -> 0 | H90: =H91+H92 -> 0
F91: Ingresos Corrientes | G91: =+G23 -> 0 | H91: =+H23 -> 0
F92: Recursos de Capital | G92: =+G69 -> 0 | H92: =+H69 -> 0

Sheet Formulario 1.2A-Cálculo I-F.E
A1: MINISTERIO DE HACIENDA Y CRÉDITO PÚBLICO
A2: Dirección General del Presupuesto Público Nacional
A3: Formulario 1.2A Cálculo de ingresos corrientes por productos - Fondos Especiales
A5: SECCIÓN
A6: UNIDAD EJECUTORA | B6: =IFERROR(VLOOKUP(B5,DESPLEGABLES!A2:B197,2,FALSE),"") -> 
A7: NOMBRE DEL FONDO ESPECIAL
A9: CÁLCULO DE LOS INGRESOS CORRIENTES POR PRODUCTO - VIGENCIA | C9: 2019 | I9: (diligenciar en pesos)
A11: Producto | B11: Clasificación Central de Producto | D11: Vigencia anterior (t-1) | G11: Vigencia en curso (t) | J11: Próxima Vigencia (t+1)
C12: Unidad de | D12: Cantidades | E12: Precio | F12: Ingreso Año | G12: Cantidades | H12: Precio | I12: Ingreso Año | J12: Cantidades | L12: Precio Promedio Unidad | N12: Ingreso Año | O12: Ingreso
C13: medida | D13: Año | E13: Promedio | G13: Año | H13: Promedio | J13: Factor de | K13: Cantidad | L13: Factor de | M13: Precio | O13: (t+1)
E14: Unidad | H14: Unidad | J14: Incremento | K14: Año | L14: Incremento | M14: Unidad | O14: Base Cero
A15: 1 | B15: 2 | C15: 3 | D15: 4 | E15: 5 | F15: 6=5X4 | G15: 7 | H15: 8 | I15: 9=7X8 | J15: 10 | K15: 11=7X10 | L15: 12 | M15: 13=8X12 | N15: 14=11X13 | O15: 15=8X11
A16: 1.01. INGRESOS TRIBUTARIOS | F16: =F17 -> 0 | I16: =I17 -> 0 | N16: =N17 -> 0 | O16: =O17 -> 0
A17: 1.01.2. IMPUESTOS INDIRECTOS | F17: =F19 -> 0 | I17: =I19 -> 0 | N17: =N19 -> 0 | O17: =O19 -> 0
F18: =E18*D18 -> 0 | I18: =G18*H18 -> 0 | K18: =G18*J18 -> 0 | M18: =H18*L18 -> 0 | N18: =K18*M18 -> 0 | O18: =H18*K18 -> 0
A19: Subtotal producto 1 | D19: =D18 -> 0 | F19: =F18 -> 0 | G19: =G18 -> 0 | I19: =I18 -> 0 | K19: =K18 -> 0 | N19: =N18 -> 0 | O19: =O18 -> 0
A20: 1.02. INGRESOS NO TRIBUTARIOS | F20: =F21+F41+F45+F53+F56+F107 -> 0 | I20: =I21+I41+I45+I53+I56+I107 -> 0 | N20: =N21+N41+N45+N53+N56+N107 -> 0 | O20: =O21+O41+O45+O53+O56+O107 -> 0
A21: 1.02.1. CONTRIBUCIONES | F21: =F22+F26+F29+F33 -> 0 | I21: =I22+I26+I29+I33 -> 0 | N21: =N22+N26+N29+N33 -> 0 | O21: =O22+O26+O29+O33 -> 0
A22: 1.02.1.01. Contribuciones sociales | F22: =F25 -> 0 | I22: =I25 -> 0 | N22: =N25 -> 0 | O22: =O25 -> 0
F23: =E23*D23 -> 0 | I23: =H23*G23 -> 0 | K23: =G23*J23 -> 0 | M23: =H23*L23 -> 0 | N23: =K23*M23 -> 0 | O23: =H23*K23 -> 0
F24: =E24*D24 -> 0 | I24: =H24*G24 -> 0 | K24: =G24*J24 -> 0 | M24: =H24*L24 -> 0 | N24: =K24*M24 -> 0 | O24: =H24*K24 -> 0
A25: Subtotal producto 1 | D25: =SUM(D23:D24) -> 0 | F25: =SUM(F23:F24) -> 0 | G25: =SUM(G23:G24) -> 0 | I25: =SUM(I23:I24) -> 0 | K25: =SUM(K23:K24) -> 0 | N25: =SUM(N23:N24) -> 0 | O25: =SUM(O23:O24) -> 0
A26: 1.02.1.02. Contribuciones asociadas a la nómina | F26: =F28 -> 0 | I26: =I28 -> 0 | N26: =N28 -> 0 | O26: =O28 -> 0
F27: =E27*D27 -> 0 | I27: =H27*G27 -> 0 | K27: =G27*J27 -> 0 | M27: =H27*L27 -> 0 | N27: =K27*M27 -> 0 | O27: =H27*K27 -> 0
A28: Subtotal producto 2 | D28: =D27 -> 0 | F28: =F27 -> 0 | G28: =G27 -> 0 | I28: =I27 -> 0 | K28: =K27 -> 0 | N28: =N27 -> 0 | O28: =O27 -> 0
A29: 1.02.1.03. Contribuciones especiales | F29: =F32 -> 0 | I29: =I32 -> 0 | N29: =N32 -> 0 | O29: =O32 -> 0
F30: =E30*D30 -> 0 | I30: =H30*G30 -> 0 | K30: =G30*J30 -> 0 | M30: =H30*L30 -> 0 | N30: =K30*M30 -> 0 | O30: =H30*K30 -> 0
F31: =E31*D31 -> 0 | I31: =H31*G31 -> 0 | K31: =G31*J31 -> 0 | M31: =H31*L31 -> 0 | N31: =K31*M31 -> 0 | O31: =H31*K31 -> 0
A32: Subtotal producto 3 | D32: =SUM(D30:D31) -> 0 | F32: =SUM(F30:F31) -> 0 | G32: =SUM(G30:G31) -> 0 | I32: =SUM(I30:I31) -> 0 | K32: =SUM(K30:K31) -> 0 | N32: =SUM(N30:N31) -> 0 | O32: =SUM(O30:O31) -> 0
A33: 1.02.1.04. Contribuciones diversas | F33: =F40 -> 0 | I33: =I40 -> 0 | N33: =N40 -> 0 | O33: =O40 -> 0
F34: =E34*D34 -> 0 | I34: =H34*G34 -> 0 | K34: =G34*J34 -> 0 | M34: =H34*L34 -> 0 | N34: =K34*M34 -> 0 | O34: =H34*K34 -> 0
F35: 0 | I35: 0 | K35: 0 | M35: 0 | N35: 0 | O35: 0
F36: 0 | I36: 0 | K36: 0 | M36: 0 | N36: 0 | O36: 0
F37: 0 | I37: 0 | K37: 0 | M37: 0 | N37: 0 | O37: 0
F38: 0 | I38: 0 | K38: 0 | M38: 0 | N38: 0 | O38: 0
F39: 0 | I39: 0 | K39: 0 | M39: 0 | N39: 0 | O39: 0
A40: Subtotal producto 4 | D40: =SUM(D34:D39) -> 0 | F40: =SUM(F34:F39) -> 0 | G40: =SUM(G34:G39) -> 0 | I40: =SUM(I34:I39) -> 0 | K40: =SUM(K34:K39) -> 0 | N40: =SUM(N34:N39) -> 0 | O40: =SUM(O34:O39) -> 0
A41: 1.02.2. TASAS Y DERECHOS ADMINISTRATIVOS | F41: =F44 -> 0 | I41: =I44 -> 0 | N41: =N44 -> 0 | O41: =O44 -> 0
F42: =E42*D42 -> 0 | I42: =H42*G42 -> 0 | K42: =G42*J42 -> 0 | M42: =H42*L42 -> 0 | N42: =K42*M42 -> 0 | O42: =H42*K42 -> 0
F43: =E43*D43 -> 0 | I43: =H43*G43 -> 0 | K43: =G43*J43 -> 0 | M43: =H43*L43 -> 0 | N43: =K43*M43 -> 0 | O43: =H43*K43 -> 0
A44: Subtotal producto 1 | D44: =SUM(D42:D43) -> 0 | F44: =SUM(F42:F43) -> 0 | G44: =SUM(G42:G43) -> 0 | I44: =SUM(I42:I43) -> 0 | K44: =SUM(K42:K43) -> 0 | N44: =SUM(N42:N43) -> 0 | O44: =SUM(O42:O43) -> 0
A45: 1.02.3. MULTAS, SANCIONES E INTERESES DE MORA | F45: =F46+F51 -> 0 | I45: =I46+I51 -> 0 | N45: =N46+N51 -> 0 | O45: =O46*O51 -> 0
A46: 1.02.3.01. Multas y sanciones | F46: =F50 -> 0 | I46: =I50 -> 0 | N46: =N50 -> 0 | O46: =O50 -> 0
F47: =E47*D47 -> 0 | I47: =H47*G47 -> 0 | K47: =G47*J47 -> 0 | M47: =H47*L47 -> 0 | N47: =K47+M47 -> 0 | O47: =H47*K47 -> 0
F48: =E48*D48 -> 0 | I48: =H48*G48 -> 0 | K48: =G48*J48 -> 0 | M48: =H48*L48 -> 0 | N48: =K48*M48 -> 0 | O48: =H48*K48 -> 0
F49: =E49*D49 -> 0 | I49: =H49*G49 -> 0 | K49: =G49*J49 -> 0 | M49: =H49*L49 -> 0 | N49: =K49*M49 -> 0 | O49: =H49*K49 -> 0
A50: Subtotal producto 1 | D50: =SUM(D47:D49) -> 0 | F50: =SUM(F47:F49) -> 0 | G50: =SUM(G47:G49) -> 0 | I50: =SUM(I47:I49) -> 0 | K50: =SUM(K47:K49) -> 0 | N50: =SUM(N47:N49) -> 0 | O50: =SUM(O47:O49) -> 0
A51: 1.02.3.02. Intereses de mora | F51: =E51*D51 -> 0 | I51: =H51*G51 -> 0 | K51: =G51*J51 -> 0 | M51: =H51*L51 -> 0 | N51: =M51*K51 -> 0 | O51: =H51*K51 -> 0
A52: Subtotal producto 2 | D52: =D51 -> 0 | F52: =F51 -> 0 | G52: =G51 -> 0 | I52: =I51 -> 0 | K52: =K51 -> 0 | N52: =N51 -> 0 | O52: =O51 -> 0
A53: 1.02.4. DERECHOS ECONÓMICOS POR USO DE RECURSOS NATURALES | F53: =F55 -> 0 | I53: =I55 -> 0 | N53: =N55 -> 0 | O53: =O55 -> 0
A54: 1.02.4.04. Regalías y compensaciones monetarias | F54: =E54*D54 -> 0 | I54: =H54*G54 -> 0 | K54: =G54*J54 -> 0 | M54: =H54*L54 -> 0 | N54: =K54*M54 -> 0 | O54: =H54*K54 -> 0
A55: Subtotal producto 1 | D55: =D54 -> 0 | F55: =F54 -> 0 | G55: =G54 -> 0 | I55: =I54 -> 0 | K55: =K54 -> 0 | N55: =N54 -> 0 | O55: =O54 -> 0
A56: 1.02.5. VENTA DE BIENES Y SERVICIOS | F56: =F57+F82 -> 0 | I56: =I57+I82 -> 0 | N56: =N57+N82 -> 0 | O56: =O57+O82 -> 0
A57: 1.02.5.01. Ventas de establecimiento de mercado | F57: =F65+F73+F81 -> 0 | I57: =I65+I73+I81 -> 0 | N57: =N65+N73+N81 -> 0 | O57: =O65+O73+O81 -> 0
F58: =E58*D58 -> 0 | I58: =H58*G58 -> 0 | K58: =G58*J58 -> 0 | M58: =H58*L58 -> 0 | N58: =K58*M58 -> 0 | O58: =H58*K58 -> 0
F59: =E59*D59 -> 0 | I59: =H59*G59 -> 0 | K59: =G59*J59 -> 0 | M59: =H59*L59 -> 0 | N59: =K59*M59 -> 0 | O59: =H59*K59 -> 0
F60: =E60*D60 -> 0 | I60: =H60*G60 -> 0 | K60: =G60*J60 -> 0 | M60: =H60*L60 -> 0 | N60: =K60*M60 -> 0 | O60: =H60*K60 -> 0
F61: 0 | I61: 0 | K61: 0 | M61: 0 | N61: 0 | O61: 0
F62: 0 | I62: 0 | K62: 0 | M62: 0 | N62: 0 | O62: 0
F63: 0 | I63: 0 | K63: 0 | M63: 0 | N63: 0 | O63: 0
F64: =E64*D64 -> 0 | I64: =H64*G64 -> 0 | K64: =G64*J64 -> 0 | M64: 0 | N64: 0 | O64: 0
A65: Subtotal producto 1 | D65: =SUM(D58:D64) -> 0 | F65: =SUM(F58:F64) -> 0 | G65: =SUM(G58:G64) -> 0 | I65: =SUM(I58:I64) -> 0 | K65: =SUM(K58:K64) -> 0 | N65: =SUM(N58:N64) -> 0 | O65: =SUM(O58:O64) -> 0
F66: =E66*D66 -> 0 | I66: =H66*G66 -> 0 | K66: =G66*J66 -> 0 | M66: =H66*L66 -> 0 | N66: =K66*M66 -> 0 | O66: =H66*K66 -> 0
F67: =E67*D67 -> 0 | I67: =H67*G67 -> 0 | K67: =G67*J67 -> 0 | M67: =H67*L67 -> 0 | N67: =K67*M67 -> 0 | O67: =H67*K67 -> 0
F68: =E68*D68 -> 0 | I68: =H68*G68 -> 0 | K68: =G68*J68 -> 0 | M68: =H68*L68 -> 0 | N68: =K68*M68 -> 0 | O68: =H68*K68 -> 0
F69: 0 | I69: 0 | K69: 0 | M69: 0 | N69: 0 | O69: 0
F70: 0 | I70: 0 | K70: 0 | M70: 0 | N70: 0 | O70: 0
F71: 0 | I71: 0 | K71: 0 | M71: 0 | N71: 0 | O71: 0
F72: =E72*D72 -> 0 | I72: =H72*G72 -> 0 | K72: =G72*J72 -> 0 | M72: 0 | N72: 0 | O72: 0
A73: Subtotal producto 2 | D73: =SUM(D66:D72) -> 0 | F73: =SUM(F66:F72) -> 0 | G73: =SUM(G66:G72) -> 0 | I73: =SUM(I66:I72) -> 0 | K73: =SUM(K66:K72) -> 0 | N73: =SUM(N66:N72) -> 0 | O73: =SUM(O66:O72) -> 0
F74: =E74*D74 -> 0 | I74: =H74*G74 -> 0 | K74: =G74*J74 -> 0 | M74: =H74*L74 -> 0 | N74: =K74*M74 -> 0 | O74: =H74*K74 -> 0
F75: =E75*D75 -> 0 | I75: =H75*G75 -> 0 | K75: =G75*J75 -> 0 | M75: =H75*L75 -> 0 | N75: =K75*M75 -> 0 | O75: =H75*K75 -> 0
F76: =E76*D76 -> 0 | I76: =H76*G76 -> 0 | K76: =G76*J76 -> 0 | M76: =H76*L76 -> 0 | N76: =K76*M76 -> 0 | O76: =H76*K76 -> 0
F77: 0 | I77: 0 | K77: 0 | M77: 0 | N77: 0 | O77: 0
F78: 0 | I78: 0 | K78: 0 | M78: 0 | N78: 0 | O78: 0
F79: 0 | I79: 0 | K79: 0 | M79: 0 | N79: 0 | O79: 0
F80: =E80*D80 -> 0 | I80: =H80*G80 -> 0 | K80: =G80*J80 -> 0 | M80: 0 | N80: 0 | O80: 0
A81: Subtotal producto 3 | D81: =SUM(D74:D80) -> 0 | F81: =SUM(F74:F80) -> 0 | G81: =SUM(G74:G80) -> 0 | I81: =SUM(I74:I80) -> 0 | K81: =SUM(K74:K80) -> 0 | N81: =SUM(N74:N80) -> 0 | O81: =SUM(O74:O80) -> 0
A82: 1.02.5.02. Ventas incidentales de establecimiento no de mercado | F82: =F90+F98+F106 -> 0 | I82: =I90+I98+I106 -> 0 | N82: =N90+N98+N106 -> 0 | O82: =O90+O98+O106 -> 0
F83: =E83*D83 -> 0 | I83: =H83*G83 -> 0 | K83: =G83*J83 -> 0 | M83: =H83*L83 -> 0 | N83: =K83*M83 -> 0 | O83: =H83*K83 -> 0
F84: =E84*D84 -> 0 | I84: =H84*G84 -> 0 | K84: =G84*J84 -> 0 | M84: =H84*L84 -> 0 | N84: =K84*M84 -> 0 | O84: =H84*K84 -> 0
F85: =E85*D85 -> 0 | I85: =H85*G85 -> 0 | K85: =G85*J85 -> 0 | M85: =H85*L85 -> 0 | N85: =K85*M85 -> 0 | O85: =H85*K85 -> 0
F86: 0 | I86: 0 | K86: 0 | M86: 0 | N86: 0 | O86: 0
F87: 0 | I87: 0 | K87: 0 | M87: 0 | N87: 0 | O87: 0
F88: 0 | I88: 0 | K88: 0 | M88: 0 | N88: 0 | O88: 0
F89: =E89*D89 -> 0 | I89: =H89*G89 -> 0 | K89: =G89*J89 -> 0 | M89: 0 | N89: 0 | O89: 0
A90: Subtotal producto 1 | D90: =SUM(D83:D89) -> 0 | F90: =SUM(F83:F89) -> 0 | G90: =SUM(G83:G89) -> 0 | I90: =SUM(I83:I89) -> 0 | K90: =SUM(K83:K89) -> 0 | N90: =SUM(N83:N89) -> 0 | O90: =SUM(O83:O89) -> 0
F91: =E91*D91 -> 0 | I91: =H91*G91 -> 0 | K91: =G91*J91 -> 0 | M91: =H91*L91 -> 0 | N91: =K91*M91 -> 0 | O91: =H91*K91 -> 0
F92: =E92*D92 -> 0 | I92: =H92*G92 -> 0 | K92: =G92*J92 -> 0 | M92: =H92*L92 -> 0 | N92: =K92*M92 -> 0 | O92: =H92*K92 -> 0
F93: =E93*D93 -> 0 | I93: =H93*G93 -> 0 | K93: =G93*J93 -> 0 | M93: =H93*L93 -> 0 | N93: =K93*M93 -> 0 | O93: =H93*K93 -> 0
F94: 0 | I94: 0 | K94: 0 | M94: 0 | N94: 0 | O94: 0
F95: 0 | I95: 0 | K95: 0 | M95: 0 | N95: 0 | O95: 0
F96: 0 | I96: 0 | K96: 0 | M96: 0 | N96: 0 | O96: 0
F97: =E97*D97 -> 0 | I97: =H97*G97 -> 0 | K97: =G97*J97 -> 0 | M97: 0 | N97: 0 | O97: 0
A98: Subtotal producto 2 | D98: =SUM(D91:D97) -> 0 | F98: =SUM(F91:F97) -> 0 | G98: =SUM(G91:G97) -> 0 | I98: =SUM(I91:I97) -> 0 | K98: =SUM(K91:K97) -> 0 | N98: =SUM(N91:N97) -> 0 | O98: =SUM(O91:O97) -> 0
F99: =E99*D99 -> 0 | I99: =H99*G99 -> 0 | K99: =G99*J99 -> 0 | M99: =H99*L99 -> 0 | N99: =K99*M99 -> 0 | O99: =H99*K99 -> 0
F100: 0 | I100: =H100*G100 -> 0 | K100: =G100*J100 -> 0 | M100: =H100*L100 -> 0 | N100: =K100*M100 -> 0 | O100: =H100*K100 -> 0
F101: 0 | I101: =H101*G101 -> 0 | K101: =G101*J101 -> 0 | M101: =H101*L101 -> 0 | N101: =K101*M101 -> 0 | O101: =H101*K101 -> 0
F102: 0 | I102: 0 | K102: 0 | M102: 0 | N102: 0 | O102: 0
F103: 0 | I103: 0 | K103: 0 | M103: 0 | N103: 0 | O103: 0
F104: 0 | I104: 0 | K104: 0 | M104: 0 | N104: 0 | O104: 0
F105: 0 | I105: =H105*G105 -> 0 | K105: =G105*J105 -> 0 | M105: 0 | N105: 0 | O105: 0
A106: Subtotal producto 3 | D106: =SUM(D99:D105) -> 0 | F106: =SUM(F99:F105) -> 0 | G106: =SUM(G99:G105) -> 0 | I106: =SUM(I99:I105) -> 0 | K106: =SUM(K99:K105) -> 0 | N106: =SUM(N99:N105) -> 0 | O106: =SUM(O99:O105) -> 0
A107: 1.02.6. TRANSFERENCIAS CORRIENTES | F107: =F113 -> 0 | I107: =I113 -> 0 | N107: =N113 -> 0 | O107: =O113 -> 0
F108: =E108*D108 -> 0 | I108: =H108*G108 -> 0 | K108: =G108*J108 -> 0 | M108: =H108*L108 -> 0 | N108: =K108*M108 -> 0 | O108: =H108*K108 -> 0
F109: =E109*D109 -> 0 | I109: =H109*G109 -> 0 | K109: =G109*J109 -> 0 | M109: =H109*L109 -> 0 | N109: =K109*M109 -> 0 | O109: =H109*K109 -> 0
F110: =E110*D110 -> 0 | I110: =H110*G110 -> 0 | K110: =G110*J110 -> 0 | M110: =H110*L110 -> 0 | N110: =K110*M110 -> 0 | O110: =H110*K110 -> 0
F111: =E111*D111 -> 0 | I111: =H111*G111 -> 0 | K111: =G111*J111 -> 0 | M111: =H111*L111 -> 0 | N111: =K111*M111 -> 0 | O111: =H111*K111 -> 0
F112: =E112*D112 -> 0 | I112: =H112*G112 -> 0 | K112: =G112*J112 -> 0 | M112: =H112*L112 -> 0 | N112: =K112*M112 -> 0 | O112: =H112*K112 -> 0
A113: Subtotal producto 1 | D113: =SUM(D108:D112) -> 0 | F113: =SUM(F108:F112) -> 0 | G113: =SUM(G108:G112) -> 0 | I113: =SUM(I108:I112) -> 0 | K113: =SUM(K108:K112) -> 0 | N113: =SUM(N108:N112) -> 0 | O113: =SUM(O108:O112) -> 0

Sheet Formulario 2- Gasto
D1: MINISTERIO DE HACIENDA Y CRÉDITO PÚBLICO
D2: Dirección General del Presupuesto Público Nacional
D3: Formulario 2. Anteproyecto Presupuesto de Gastos
A5: SECCIÓN
A6: UNIDAD EJECUTORA | E6: =IFERROR(VLOOKUP(E5,DESPLEGABLES!A2:B197,2,FALSE),"") -> 
B8: ANTEPROYECTO DE PRESUPUESTO DE GASTOS - VIGENCIA | G8: 2019
G11: (diligenciar en pesos)
A13: Clasificación | E13: Concepto | F13: Proyectado vigencia en curso (t) | I13: Gastos programados (t+1) | L13: Vigencias Futuras aprobadas | O13: Observaciones
A14: Cta | B14: Subcta | C14: Obj gasto | D14: Ord | F14: Aportes de la Nación | G14: Recursos Propios | H14: Total | I14: Aportes de la Nación | J14: Recursos Propios | K14: Total | L14: Aportes de la Nación | M14: Recursos Propios | N14: Total
F15: 1 | G15: 2 | H15: 3= 1+2 | I15: 4 | J15: 5 | K15: 6= 4+5 | L15: 7 | M15: 8 | N15: 9= 7+8
A16: 01 | E16: Gastos de personal | F16: =F17+F26 -> 0 | G16: =G17+G26 -> 7.083589165e+10 | H16: =F16+G16 -> 7.083589165e+10 | I16: 0 | J16: 7.317347607e+10 | K16: =I16+J16 -> 7.317347607e+10 | L16: 0 | M16: 0 | N16: =L16+M16 -> 0
A17: 01 | B17: 01 | E17: Planta de personal permanente | F17: =F18+F21+F22+F23 -> 0 | G17: =G18+G21+G22+G23 -> 70379175452 | H17: =F17+G17 -> 70379175452 | I17: =I18+I21+I22+I23 -> 0 | J17: =J18+J21+J22+J23 -> 7.270168824e+10 | K17: =I17+J17 -> 7.270168824e+10 | L17: =L18+L21+L22+L23 -> 0 | M17: =M18+M21+M22+M23 -> 0 | N17: =L17+M17 -> 0
A18: 01 | B18: 01 | C18: 01 | E18: Salario | F18: =SUM(F19:F20) -> 0 | G18: 4.833763073e+10 | H18: 4.833763073e+10 | I18: 0 | J18: 49932772549 | K18: 49932772549 | L18: 0 | M18: 0 | N18: 0
A19: 01 | B19: 01 | C19: 01 | D19: 001 | E19: Factores salariales comunes | G19: 27069209177 | H19: 27069209177 | J19: 2.796249308e+10 | K19: 2.796249308e+10 | N19: 0
A20: 01 | B20: 01 | C20: 01 | D20: 002 | E20: Factores salariales especiales | G20: 2.126842156e+10 | H20: 2.126842156e+10 | J20: 2.197027947e+10 | K20: 2.197027947e+10 | N20: 0
A21: 01 | B21: 01 | C21: 02 | E21: Contribuciones inherentes a la nómina | G21: 1.536728059e+10 | H21: 1.536728059e+10 | J21: 1.587440084e+10 | K21: 1.587440084e+10 | N21: 0
A22: 01 | B22: 01 | C22: 03 | E22: Remuneraciones no constitutivas de factor salarial | G22: =6977464129.95-303200000 -> 6674264130 | H22: 6674264130 | J22: 6894514846 | K22: 6894514846 | N22: 0
A23: 01 | B23: 01 | C23: 04 | E23: Otros gastos de personal | F23: =SUM(F24:F25) -> 0 | G23: =SUM(G24:G25) -> 0 | H23: 0 | I23: =SUM(I24:I25) -> 0 | J23: =SUM(J24:J25) -> 0 | K23: 0 | L23: =SUM(L24:L25) -> 0 | M23: =SUM(M24:M25) -> 0 | N23: 0
A24: 01 | B24: 01 | C24: 04 | D24: 001 | E24: Otros gastos personales- Previo concepto DGPPN | H24: =F24+G24 -> 0 | K24: =I24+J24 -> 0 | N24: =L24+M24 -> 0
A25: 01 | B25: 01 | C25: 04 | D25: 002 | E25: Personal extranjero en consulados y embajadas (local) | H25: =F25+G25 -> 0 | K25: =I25+J25 -> 0 | N25: =L25+M25 -> 0
A26: 01 | B26: 02 | E26: Personal supernumerario y planta temporal | F26: =F27+F30+F31+F32 -> 0 | G26: =G27+G30+G31+G32 -> 456716195.8 | H26: =G26+F26 -> 456716195.8 | I26: 0 | J26: 471787830.2 | K26: =I26+J26 -> 471787830.2 | L26: 0 | M26: 0 | N26: =M26+L26 -> 0
A27: 01 | B27: 02 | C27: 01 | E27: Salario | F27: =SUM(F28:F29) -> 0 | G27: =SUM(G28:G29) -> 329049511 | H27: 329049511 | I27: 0 | J27: 339908144.9 | K27: 339908144.9 | L27: 0 | M27: 0 | N27: 0
A28: 01 | B28: 02 | C28: 01 | D28: 001 | E28: Factores salariales comunes | G28: 187678559.9 | H28: 187678559.9 | J28: 193871952.3 | K28: 193871952.3 | N28: 0
A29: 01 | B29: 02 | C29: 01 | D29: 002 | E29: Factores salariales especiales | G29: 141370951.2 | H29: 141370951.2 | J29: 146036192.5 | K29: 146036192.5 | N29: 0
A30: 01 | B30: 02 | C30: 02 | E30: Contribuciones inherentes a la nómina | G30: 104628136.8 | H30: 104628136.8 | J30: 108080865.2 | K30: 108080865.2 | N30: 0
A31: 01 | B31: 02 | C31: 03 | E31: Remuneraciones no constitutivas de factor salarial | G31: 23038547.97 | H31: 23038547.97 | J31: 23798820.05 | K31: 23798820.05 | N31: 0
A32: 01 | B32: 02 | C32: 04 | E32: Otros gastos de personal | F32: =F33 -> 0 | G32: =G33 -> 0 | H32: =F32+G32 -> 0 | I32: =I33 -> 0 | J32: =J33 -> 0 | K32: =I32+J32 -> 0 | L32: =L33 -> 0 | M32: =M33 -> 0 | N32: =L32+M32 -> 0
A33: 01 | B33: 02 | C33: 04 | D33: 001 | E33: Otros gastos personales- Previo concepto DGPPN | H33: =F33+G33 -> 0 | K33: =I33+J33 -> 0 | N33: =L33+M33 -> 0
A34: 02 | E34: Adquisición de bienes y servicios | F34: =F35+F44 -> 0 | G34: =G35+G44 -> 1.120378552e+10 | H34: 1.120378552e+10 | I34: 0 | J34: 1.292287161e+10 | K34: 1.292287161e+10 | L34: 0 | M34: 0 | N34: 0
A35: 02 | B35: 01 | E35: Adquisición de activos no financieros | F35: =+F36+F42+F43 -> 0 | G35: =+G36+G42+G43 -> 36105000 | H35: 36105000 | I35: 0 | J35: 237188150 | K35: 237188150 | L35: 0 | M35: 0 | N35: 0
A36: 02 | B36: 01 | C36: 01 | E36: Activos Fijos | F36: =+SUM(F37:F41) -> 0 | G36: =+SUM(G37:G41) -> 36105000 | H36: 36105000 | I36: 0 | J36: 237188150 | K36: 237188150 | L36: 0 | M36: 0 | N36: 0
A37: 02 | B37: 01 | C37: 01 | D37: 001 | E37: Edificios y estructuras | H37: 0 | K37: 0 | N37: 0
A38: 02 | B38: 01 | C38: 01 | D38: 002 | E38: Sistemas de armamento | H38: 0 | K38: 0 | N38: 0
A39: 02 | B39: 01 | C39: 01 | D39: 003 | E39: Activos fijos no clasificados como maquinaria y equipo | H39: 0 | K39: 0 | N39: 0
A40: 02 | B40: 01 | C40: 01 | D40: 004 | E40: Maquinaria y equipo | G40: 36105000 | H40: =F40+G40 -> 36105000 | J40: 237188150 | K40: =I40+J40 -> 237188150 | N40: =L40+M40 -> 0
A41: 02 | B41: 01 | C41: 01 | D41: 006 | E41: Otros activos fijos | H41: 0 | K41: 0 | N41: 0
A42: 02 | B42: 01 | C42: 02 | E42: Objetos de valor | H42: 0 | K42: 0 | N42: 0
A43: 02 | B43: 01 | C43: 03 | E43: Activos no producidos | H43: 0 | K43: 0 | N43: 0
A44: 02 | B44: 02 | E44: Adquisiciones diferentes de activos | F44: =F45+F52+F59 -> 0 | G44: 1.116768052e+10 | H44: 1.116768052e+10 | I44: 0 | J44: 1.268568346e+10 | K44: 1.268568346e+10 | L44: 0 | M44: 0 | N44: 0
A45: 02 | B45: 02 | C45: 01 | E45: Materiales y suministros | F45: =+SUM(F46:F51) -> 0 | G45: =+SUM(G46:G51) -> 254460000 | H45: 254460000 | I45: 0 | J45: 262093800 | K45: 262093800 | L45: 0 | M45: 0 | N45: 0
A46: 02 | B46: 02 | C46: 01 | D46: 000 | E46: Agricultura, silvicultura y productos de la pesca | H46: 0 | K46: 0 | N46: 0
A47: 02 | B47: 02 | C47: 01 | D47: 001 | E47: Minerales; electricidad, gas y agua | H47: 0 | K47: 0 | N47: 0
A48: 02 | B48: 02 | C48: 01 | D48: 002 | E48: Productos alimenticios, bebidas y tabaco; textiles, prendas de vestir y productos de cuero | G48: 7000000 | H48: 7000000 | J48: 7210000 | K48: 7210000 | N48: 0
A49: 02 | B49: 02 | C49: 01 | D49: 003 | E49: Otros bienes transportables, (excepto productos metálicos, maquinaria y equipo) | G49: 247460000 | H49: 247460000 | J49: 254883800 | K49: 254883800 | N49: 0
A50: 02 | B50: 02 | C50: 01 | D50: 004 | E50: Productos metálicos y paquetes de software | H50: 0 | K50: 0 | N50: 0
A51: 02 | B51: 02 | C51: 01 | D51: 010 | E51: Elementos militares de un solo uso | H51: 0 | K51: 0 | N51: 0
A52: 02 | B52: 02 | C52: 02 | E52: Adquisición de servicios | F52: =SUM(F53:F58) -> 0 | G52: =SUM(G53:G58) -> 1.091322052e+10 | H52: 1.091322052e+10 | I52: =SUM(I53:I58) -> 0 | J52: =SUM(J53:J58) -> 1.242358966e+10 | K52: 1.242358966e+10 | L52: =SUM(L53:L58) -> 0 | M52: =SUM(M53:M58) -> 0 | N52: 0
A53: 02 | B53: 02 | C53: 02 | D53: 005 | E53: Servicios de la construcción | H53: 0 | K53: 0 | N53: 0
A54: 02 | B54: 02 | C54: 02 | D54: 006 | E54: Servicios de alojamiento; servicios de suministro de comidas y bebidas; servicios de transporte; y servicios de distribución de electricidad, gas y agua | G54: 1808018333 | H54: 1808018333 | J54: 1862258883 | K54: 1862258883 | N54: 0
A55: 02 | B55: 02 | C55: 02 | D55: 007 | E55: Servicios financieros y servicios conexos, servicios inmobiliarios y servicios de leasing | G55: 888549862 | H55: 888549862 | J55: 915206357.9 | K55: 915206357.9 | N55: 0
A56: 02 | B56: 02 | C56: 02 | D56: 008 | E56: Servicios prestados a las empresas y servicios de producción | G56: 7558495111 | H56: 7558495111 | J56: 8968222492 | K56: 8968222492 | N56: 0
A57: 02 | B57: 02 | C57: 02 | D57: 009 | E57: Servicios para la comunidad, sociales y personales | G57: 354957213.6 | H57: 354957213.6 | J57: 365605930 | K57: 365605930 | N57: 0
A58: 02 | B58: 02 | C58: 02 | D58: 010 | E58: Viáticos de los funcionarios en comisión | G58: =264111482.02+39088517.98 -> 303200000 | H58: =F58+G58 -> 303200000 | J58: =272034826.48+40261173.52 -> 312296000 | K58: =I58+J58 -> 312296000 | N58: =L58+M58 -> 0
A59: 02 | B59: 02 | C59: 03 | E59: Gastos reservados | H59: 0 | K59: 0 | N59: 0
A60: 03 | E60: Transferencias corrientes | F60: =+F61+F75+F218+F384+F490+F491+F510+F511+F516+F517+F525+F557 -> 1881591553 | G60: =+G61+G75+G218+G384+G490+G491+G510+G511+G516+G517+G525+G557 -> 42619900000 | H60: 44501491553 | I60: =+I61+I75+I218+I384+I490+I491+I510+I511+I516+I517+I525+I557 -> 0 | J60: =+J61+J75+J218+J384+J490+J491+J510+J511+J516+J517+J525+J557 -> 41985620000 | K60: 41985620000 | L60: =+L61+L75+L218+L384+L490+L491+L510+L511+L516+L517+L525+L557 -> 0 | M60: =+M61+M75+M218+M384+M490+M491+M510+M511+M516+M517+M525+M557 -> 0 | N60: 0
A61: 03 | B61: 01 | E61: Subvenciones | F61: =F62+F66+F70+F72 -> 0 | G61: =G62+G66+G70+G72 -> 0 | H61: 0 | I61: =I62+I66+I70+I72 -> 0 | J61: =J62+J66+J70+J72 -> 0 | K61: 0 | L61: =L62+L66+L70+L72 -> 0 | M61: =M62+M66+M70+M72 -> 0 | N61: 0
A62: 03 | B62: 01 | C62: 01 | E62: A empresas públicas financieras | F62: =SUM(F63:F65) -> 0 | G62: =SUM(G63:G65) -> 0 | H62: 0 | I62: =SUM(I63:I65) -> 0 | J62: =SUM(J63:J65) -> 0 | K62: 0 | L62: =SUM(L63:L65) -> 0 | M62: =SUM(M63:M65) -> 0 | N62: 0
A63: 03 | B63: 01 | C63: 01 | D63: 001 | E63: Transferencia De Recursos Al Patrimonio Autónomo Fideicomiso De Promoción De Exportaciones - Proexport. Articulo 33 Ley 1328 De 2009 | H63: 0 | K63: 0 | N63: 0
A64: 03 | B64: 01 | C64: 01 | D64: 002 | E64: Transferencia Fontur- Art. 21 de la Ley 1558 de 2012 | H64: =F64+G64 -> 0 | K64: =I64+J64 -> 0 | N64: =L64+M64 -> 0
A65: 03 | B65: 01 | C65: 01 | H65: =F65+G65 -> 0 | K65: =I65+J65 -> 0 | N65: =L65+M65 -> 0
A66: 03 | B66: 01 | C66: 02 | E66: A empresas públicas no financieras | F66: =SUM(F67:F69) -> 0 | G66: =SUM(G67:G69) -> 0 | H66: 0 | I66: =SUM(I67:I69) -> 0 | J66: =SUM(J67:J69) -> 0 | K66: 0 | L66: =SUM(L67:L69) -> 0 | M66: =SUM(M67:M69) -> 0 | N66: 0
A67: 03 | B67: 01 | C67: 02 | D67: 001 | E67: Subvenciones A Satena S.A. Como Único Operador De Rutas Sociales. (Art. 240 Ley 1753 De 2015) | H67: =F67+G67 -> 0 | K67: =I67+J67 -> 0 | N67: =L67+M67 -> 0
A68: 03 | B68: 01 | C68: 02 | D68: 002 | E68: Transferencia A La Sociedad De Activos Especiales SAE - S.A.S - Articulo 90 Ley 1708 De 2014 | H68: 0 | K68: 0 | N68: 0
A69: 03 | B69: 01 | C69: 02 | H69: 0 | K69: 0 | N69: 0
A70: 03 | B70: 01 | C70: 03 | E70: A empresas privadas financieras | F70: =F71 -> 0 | G70: =G71 -> 0 | H70: 0 | I70: =I71 -> 0 | J70: =J71 -> 0 | K70: 0 | L70: =L71 -> 0 | M70: =M71 -> 0 | N70: 0
A71: 03 | B71: 01 | C71: 03 | H71: =F71+G71 -> 0 | K71: =I71+J71 -> 0 | N71: =L71+M71 -> 0
A72: 03 | B72: 01 | C72: 04 | E72: A empresas privadas no financieras | F72: =SUM(F73:F74) -> 0 | G72: =SUM(G73:G74) -> 0 | H72: 0 | I72: =SUM(I73:I74) -> 0 | J72: =SUM(J73:J74) -> 0 | K72: 0 | L72: =SUM(L73:L74) -> 0 | M72: =SUM(M73:M74) -> 0 | N72: 0
A73: 03 | B73: 01 | C73: 04 | D73: 001 | E73: Transferencia A Los Proveedores De Redes Y Servicios De Telecomunicaciones Art 58 De Ley 1450 De 2011 | H73: =F73+G73 -> 0 | K73: =I73+J73 -> 0 | N73: =L73+M73 -> 0
A74: 03 | B74: 01 | C74: 04 | H74: 0 | K74: 0 | N74: 0
A75: 03 | B75: 02 | E75: A gobiernos y organizaciones internacionales | F75: =F76+F78 -> 0 | G75: =G76+G78 -> 0 | H75: 0 | I75: 0 | J75: 0 | K75: 0 | L75: 0 | M75: 0 | N75: 0
A76: 03 | B76: 02 | C76: 01 | E76: A gobiernos extranjeros | F76: =F77 -> 0 | G76: =G77 -> 0 | H76: 0 | I76: =I77 -> 0 | J76: =J77 -> 0 | K76: 0 | L76: =L77 -> 0 | M76: =M77 -> 0 | N76: 0
A77: 03 | B77: 02 | C77: 01 | H77: =F77+G77 -> 0 | K77: =I77+J77 -> 0 | N77: =L77+M77 -> 0
A78: 03 | B78: 02 | C78: 02 | E78: A organizaciones internacionales | F78: =SUM(F79:F217) -> 0 | G78: =SUM(G79:G217) -> 0 | H78: =F78+G78 -> 0 | I78: =SUM(I79:I217) -> 0 | J78: =SUM(J79:J217) -> 0 | K78: =I78+J78 -> 0 | L78: =SUM(L79:L217) -> 0 | M78: =SUM(M79:M217) -> 0 | N78: =L78+M78 -> 0
A79: 03 | B79: 02 | C79: 02 | D79: 001 | E79: Consejo Internacional De Archivos (Ica) Ley 927 De 2004 | H79: 0 | K79: 0 | N79: 0
A80: 03 | B80: 02 | C80: 02 | D80: 002 | E80: Asociación Internacional De Organismos De Supervisión De Fondos De Pensiones-AIOS. Articulo 97 Ley 795 De 2003 | H80: 0 | K80: 0 | N80: 0
A81: 03 | B81: 02 | C81: 02 | D81: 003 | E81: Asociación Internacional De Supervisores De Seguros -IAIS-Art. 97 De La Ley 795 Del 2003 | H81: 0 | K81: 0 | N81: 0
A82: 03 | B82: 02 | C82: 02 | D82: 004 | E82: Organización Internacional De Comisiones De Valores IOSCO/OICV Articulo 112 Ley 795/2003 | H82: 0 | K82: 0 | N82: 0
A83: 03 | B83: 02 | C83: 02 | D83: 005 | E83: Organización Internacional De Supervisores De Pensiones - IOPS. Articulo 112 Ley 795 De 2003 | H83: 0 | K83: 0 | N83: 0
A84: 03 | B84: 02 | C84: 02 | D84: 006 | E84: Programa De Apoyo Al Desarrollo De Archivos Iberoamericanos -ADAI- Ley 558 De 2000 | H84: 0 | K84: 0 | N84: 0
A85: 03 | B85: 02 | C85: 02 | D85: 007 | E85: Foro Interparlamentario Para Las Américas - FIPA (Ley 1096 De 2006) | H85: 0 | K85: 0 | N85: 0
A86: 03 | B86: 02 | C86: 02 | D86: 008 | E86: Parlamento Latinoamericano (Ley 83 De 1988) | H86: 0 | K86: 0 | N86: 0
A87: 03 | B87: 02 | C87: 02 | D87: 009 | E87: Reconocimiento Y Pago De Salarios Y Prestaciones A Representantes De Colombia Ante El Parlamento Andino - Ley 1157 De 2007 | H87: 0 | K87: 0 | N87: 0
A88: 03 | B88: 02 | C88: 02 | D88: 010 | E88: Unión Interparlamentaria (Ley 204 De 1995) | H88: =F88+G88 -> 0 | K88: =I88+J88 -> 0 | N88: =L88+M88 -> 0
A89: 03 | B89: 02 | C89: 02 | D89: 011 | E89: OLACEFS (Ley 46 De 1981) | H89: 0 | K89: 0 | N89: 0
A90: 03 | B90: 02 | C90: 02 | D90: 012 | E90: Organización Mundial De Propiedad Intelectual -OMPI- Ley 33 De 1987 | H90: =F90+G90 -> 0 | K90: =I90+J90 -> 0 | N90: =L90+M90 -> 0
A91: 03 | B91: 02 | C91: 02 | D91: 013 | E91: Centro Latinoamericano De Administración Para El Desarrollo – CLAD. Ley 637 De 2001 | H91: 0 | K91: 0 | N91: 0
A92: 03 | B92: 02 | C92: 02 | D92: 014 | E92: Unión Internacional De Telecomunicaciones-UIT-Ley 252 De 1995 | H92: 0 | K92: 0 | N92: 0
A93: 03 | B93: 02 | C93: 02 | D93: 015 | E93: Alto Comisionado De Las Naciones Unidas Para Los Refugiados. ACNUR (Ley 13 De 1945 Y 35 De 1961) | H93: 0 | K93: 0 | N93: 0
A94: 03 | B94: 02 | C94: 02 | D94: 016 | E94: Asociación De Estados Del Caribe. AEC. (Ley 216 De 1995) | H94: 0 | K94: 0 | N94: 0
A95: 03 | B95: 02 | C95: 02 | D95: 017 | E95: Asociación Latinoamericana De Integración. ALADI. (Ley 45 De 1981) | H95: 0 | K95: 0 | N95: 0
A96: 03 | B96: 02 | C96: 02 | D96: 018 | E96: Buro Internacional De Exposiciones (Ley 52/1930) | H96: 0 | K96: 0 | N96: 0
A97: 03 | B97: 02 | C97: 02 | D97: 019 | E97: Centro De Ciencia Y Tecnología De Los Países No Alineados Y Otros Países En Desarrollo. (Ley 354/1997) | H97: 0 | K97: 0 | N97: 0
A98: 03 | B98: 02 | C98: 02 | D98: 020 | E98: Centro De Información De Las Naciones Unidas. CINU: (Ley 13/45) | H98: 0 | K98: 0 | N98: 0
A99: 03 | B99: 02 | C99: 02 | D99: 021 | E99: Centro Internacional De Estudios Para La Conservación Y Restauración De Los Bienes Culturales. UNESCO.ICCROM. (Ley 8 De 1947) | H99: 0 | K99: 0 | N99: 0
A100: 03 | B100: 02 | C100: 02 | D100: 022 | E100: Centro Regional Para El Fomento Del Libro En América Latina Y El Caribe. CERLALC. (Ley 65 De 1986) | H100: 0 | K100: 0 | N100: 0
A101: 03 | B101: 02 | C101: 02 | D101: 023 | E101: Comisión Económica Para América Latina. CEPAL. (Ley 13 De 1945) | H101: 0 | K101: 0 | N101: 0
A102: 03 | B102: 02 | C102: 02 | D102: 024 | E102: Comisión Internacional Humanitaria. CIH. (Ley 11 De 1992 Y Ley 171 De 1994) | H102: 0 | K102: 0 | N102: 0
A103: 03 | B103: 02 | C103: 02 | D103: 025 | E103: Comisión Permanente Del Pacifico Sur. CPPS. (Ley 7 De 1980) | H103: 0 | K103: 0 | N103: 0
A104: 03 | B104: 02 | C104: 02 | D104: 026 | E104: Comisión Preparatoria De La Organización Para La Prohibición De Armas Químicas. OPAQ. (Ley 13/1945 Y Ley 525/1999) | H104: 0 | K104: 0 | N104: 0
A105: 03 | B105: 02 | C105: 02 | D105: 027 | E105: Comité Internacional De La Cruz Roja. Contribución Ordinaria. CICR. (Ley 5 De 1960) | H105: 0 | K105: 0 | N105: 0
A106: 03 | B106: 02 | C106: 02 | D106: 028 | E106: Consejo Colombiano De Cooperación En El Pacifico. COLPEC. (Ley 827 De 2003) | H106: 0 | K106: 0 | N106: 0
A107: 03 | B107: 02 | C107: 02 | D107: 029 | E107: Convención De Basilea. (Ley 253 De 1996) | H107: 0 | K107: 0 | N107: 0
A108: 03 | B108: 02 | C108: 02 | D108: 030 | E108: Convención De Las Naciones Unidas Contra La Desertización. UNCLD. (Ley 461 De 1998) | H108: 0 | K108: 0 | N108: 0
A109: 03 | B109: 02 | C109: 02 | D109: 031 | E109: Convención Marco De Las Naciones Unidas Sobre Cambio Climático. (Ley 164 De 1994) | H109: 0 | K109: 0 | N109: 0
A110: 03 | B110: 02 | C110: 02 | D110: 032 | E110: Convención Minas Antipersonales. (Ley 554 De 2000) | H110: 0 | K110: 0 | N110: 0
A111: 03 | B111: 02 | C111: 02 | D111: 033 | E111: Convención Para Ciertas Armas Convencionales. CCW. Ley 469 De 1998 | H111: 0 | K111: 0 | N111: 0
A112: 03 | B112: 02 | C112: 02 | D112: 034 | E112: Convención Para La Prohibición Del Desarrollo, La Producción Y El Almacenamiento De Armas Bacteriológicas Y Toxinas Y Sobre Destrucción. BCW - Ley 13 De 1945 | H112: 0 | K112: 0 | N112: 0
A113: 03 | B113: 02 | C113: 02 | D113: 035 | E113: Convenio De Estocolmo Sobre Contaminantes Orgánicos Persistentes (Ley 1196/2008) | H113: 0 | K113: 0 | N113: 0
A114: 03 | B114: 02 | C114: 02 | D114: 036 | E114: Convenio De Rotterdam Para La Aplicación Del Procedimiento Del Consentimiento Fundamentado Previo A Ciertos Plaguicidas Y Productos Químicos Peligrosos Objeto De Comercio Internacional (Ley 1159 De 2007) | H114: 0 | K114: 0 | N114: 0
A115: 03 | B115: 02 | C115: 02 | D115: 037 | E115: Convenio Relativo A Los Humedales De Importancia Internacional Especialmente Como Hábitat De Aves Acuáticas. (Ley 357 De 1997) | H115: 0 | K115: 0 | N115: 0
A116: 03 | B116: 02 | C116: 02 | D116: 038 | E116: Corte Penal Internacional. CPI. (Ley 742 De 2002) | H116: 0 | K116: 0 | N116: 0
A117: 03 | B117: 02 | C117: 02 | D117: 039 | E117: Corte Permanente De Arbitraje. CPA. (Ley 251 De 1995) | H117: 0 | K117: 0 | N117: 0
A118: 03 | B118: 02 | C118: 02 | D118: 040 | E118: Cuota Concordataria. (Ley 20 De 1974) | H118: 0 | K118: 0 | N118: 0
A119: 03 | B119: 02 | C119: 02 | D119: 041 | E119: Decisión Del Consejo De La Organización Para La Cooperación Y El Desarrollo Económico OCDE. (Decreto 2608 De 2010) | H119: 0 | K119: 0 | N119: 0
A120: 03 | B120: 02 | C120: 02 | D120: 042 | E120: Organización De Las Naciones Unidas Para El Desarrollo Industrial. ONUDI. (Ley 46 De 1980) | H120: 0 | K120: 0 | N120: 0
A121: 03 | B121: 02 | C121: 02 | D121: 043 | E121: Fondo Convenio Viena Protección Capa De Ozono. (Ley 30 De 1990) | H121: 0 | K121: 0 | N121: 0
A122: 03 | B122: 02 | C122: 02 | D122: 044 | E122: Fondo De Las Naciones Unidas Para La Infancia. Unicef. (Ley 13 De 1945) | H122: 0 | K122: 0 | N122: 0
A123: 03 | B123: 02 | C123: 02 | D123: 045 | E123: Fondo De Patrimonio Mundial. (Ley 45 De 1983) | H123: 0 | K123: 0 | N123: 0
A124: 03 | B124: 02 | C124: 02 | D124: 046 | E124: Fondo Especial Multilateral Del Consejo Interamericano Para El Desarrollo Integral - FEMCIDI. (Ley 1 De 1951, Ley 215 De 1995) | H124: 0 | K124: 0 | N124: 0
A125: 03 | B125: 02 | C125: 02 | D125: 047 | E125: Fondo Especial Para Las Migraciones (Art. 6 Ley 1465 De 2011 - Decreto 4976 De 2011) | H125: 0 | K125: 0 | N125: 0
A126: 03 | B126: 02 | C126: 02 | D126: 048 | E126: Fondo Fiduciario Para El Plan De Acción Del Pacifico Sudeste. (Ley 13 De 1945) | H126: 0 | K126: 0 | N126: 0
A127: 03 | B127: 02 | C127: 02 | D127: 049 | E127: Fondo Fiduciario Para El Programa Ambiental Del Caribe. (Ley 13 De 1945) | H127: 0 | K127: 0 | N127: 0
A128: 03 | B128: 02 | C128: 02 | D128: 050 | E128: Fondo General Del Organismo De Obras Públicas Y Socorro De Las Naciones Unidas Para Refugiados Palestinos. UNRWA. OOPS. (Ley 13 De 1945) | H128: 0 | K128: 0 | N128: 0
A129: 03 | B129: 02 | C129: 02 | D129: 051 | E129: Foro Internacional De Desarrollo Agrícola. FIDA. (Ley 36 De 1979) | H129: 0 | K129: 0 | N129: 0
A130: 03 | B130: 02 | C130: 02 | D130: 052 | E130: Gastos Funcionamiento Sede De La Oficina Central Parlamento Andino | H130: 0 | K130: 0 | N130: 0
A131: 03 | B131: 02 | C131: 02 | D131: 053 | E131: Grupo De Acción Financiera Contra El Lavado De Activos -GAFISUD. (Ley 1186 De 2008) | H131: 0 | K131: 0 | N131: 0
A132: 03 | B132: 02 | C132: 02 | D132: 054 | E132: Instituto Interamericano De Cooperación Para La Agricultura. IICA. (Ley 72 De 1979) | H132: 0 | K132: 0 | N132: 0
A133: 03 | B133: 02 | C133: 02 | D133: 055 | E133: Instituto Interamericano Para La Unificación Del Derecho Privado. UNIDROIT. (Ley 32 De 1992) | H133: 0 | K133: 0 | N133: 0
A134: 03 | B134: 02 | C134: 02 | D134: 056 | E134: Instituto Ítalo Latinoamericano De Roma. IILA. (Ley 17 De 1967) | H134: 0 | K134: 0 | N134: 0
A135: 03 | B135: 02 | C135: 02 | D135: 057 | E135: Instituto Latinoamericano De Planificación Económica Y Social ILPES. (Ley 13 De 1945) | H135: 0 | K135: 0 | N135: 0
A136: 03 | B136: 02 | C136: 02 | D136: 058 | E136: Instituto Panamericano De Geografía E Historia. IPGH. (Ley 1 De 1951) | H136: 0 | K136: 0 | N136: 0
A137: 03 | B137: 02 | C137: 02 | D137: 059 | E137: Instituto Para La Integración De América Latina. INTAL. (Ley 102 De 1959) | H137: 0 | K137: 0 | N137: 0
A138: 03 | B138: 02 | C138: 02 | D138: 060 | E138: Naciones Unidas Para Todas Las Operaciones De Mantenimiento De La Paz. OMP. Ley 13 De 1945 | H138: 0 | K138: 0 | N138: 0
A139: 03 | B139: 02 | C139: 02 | D139: 061 | E139: Organismo Internacional De Energía Atómica. OIEA. (Ley 16/1960) | H139: 0 | K139: 0 | N139: 0
A140: 03 | B140: 02 | C140: 02 | D140: 062 | E140: Organización De Estados Americanos -OEA- Fondos Específicos. (Ley 1 De 1951, Ley 77 De 1986) | H140: 0 | K140: 0 | N140: 0
A141: 03 | B141: 02 | C141: 02 | D141: 063 | E141: Organización De Estados Americanos OEA. Fondo Regular. (Ley 1 De 1951, Ley 77 De 1986) | H141: 0 | K141: 0 | N141: 0
A142: 03 | B142: 02 | C142: 02 | D142: 064 | E142: Organización De Las Naciones Unidas - ONU- Fondos Generales. (Ley 13 De 1945) | H142: 0 | K142: 0 | N142: 0
A143: 03 | B143: 02 | C143: 02 | D143: 065 | E143: Organización De Las Naciones Unidas Para La Agricultura Y La Alimentación. Aporte Convenio Internacional. FAO. (Ley 181 De 1948) | H143: 0 | K143: 0 | N143: 0
A144: 03 | B144: 02 | C144: 02 | D144: 066 | E144: Organización De Las Naciones Unidas Para La Educación, La Ciencia Y La Cultura. Unesco. (Ley 8 De 1947) | H144: 0 | K144: 0 | N144: 0
A145: 03 | B145: 02 | C145: 02 | D145: 067 | E145: Organización De Las Naciones Unidas. ONU. (Ley 13 De 1945) | H145: 0 | K145: 0 | N145: 0
A146: 03 | B146: 02 | C146: 02 | D146: 068 | E146: Organización Iberoamericana De La Juventud OIJ (Ley 535 De 1999) | H146: 0 | K146: 0 | N146: 0
A147: 03 | B147: 02 | C147: 02 | D147: 069 | E147: Organización Internacional Hidrográfica. OIH. (Ley 408 De 1997) | H147: 0 | K147: 0 | N147: 0
A148: 03 | B148: 02 | C148: 02 | D148: 070 | E148: Organización Internacional Para Las Migraciones. OIM. (Ley 13 De 1961 Y Ley 50 De 1988) | H148: =F148+G148 -> 0 | K148: =I148+J148 -> 0 | N148: =L148+M148 -> 0
A149: 03 | B149: 02 | C149: 02 | D149: 071 | E149: Organización Latinoamericana De Energía. OLADE. (Ley 6 De 1976) | H149: 0 | K149: 0 | N149: 0
A150: 03 | B150: 02 | C150: 02 | D150: 072 | E150: Organización Marítima Internacional. OMI. (Ley 6 De 1974 Y Ley 45 De 1994) | H150: 0 | K150: 0 | N150: 0
A151: 03 | B151: 02 | C151: 02 | D151: 073 | E151: Organización Meteorológica Mundial. OMM. (Ley 36 De 1961) | H151: 0 | K151: 0 | N151: 0
A152: 03 | B152: 02 | C152: 02 | D152: 074 | E152: Organización Mundial De La Salud. OMS. (Ley 19 De 1959) | H152: 0 | K152: 0 | N152: 0
A153: 03 | B153: 02 | C153: 02 | D153: 075 | E153: Organización Panamericana De La Salud. OPS. (Ley 51 De 1931) | H153: 0 | K153: 0 | N153: 0
A154: 03 | B154: 02 | C154: 02 | D154: 076 | E154: Organización Para La Proscripción De Las Armas Nucleares En América Latina. OPANAL. (Ley 45 De 1971) | H154: 0 | K154: 0 | N154: 0
A155: 03 | B155: 02 | C155: 02 | D155: 077 | E155: Parlamento Andino. (Ley 94 De 1985) | H155: 0 | K155: 0 | N155: 0
A156: 03 | B156: 02 | C156: 02 | D156: 078 | E156: Plan Puebla Panamá (PPP). Art. 224 Constitución Política | H156: 0 | K156: 0 | N156: 0
A157: 03 | B157: 02 | C157: 02 | D157: 079 | E157: Programa De Las Naciones Unidas Para El Desarrollo. PNUD. (Ley 13 De 1945) | H157: 0 | K157: 0 | N157: 0
A158: 03 | B158: 02 | C158: 02 | D158: 080 | E158: Programa De Las Naciones Unidas Para El Medio Ambiente. PNUMA. (Ley 13 De 1945) | H158: 0 | K158: 0 | N158: 0
A159: 03 | B159: 02 | C159: 02 | D159: 081 | E159: Programa De Las Naciones Unidas Para La Fiscalización Internacional De Las Drogas. PNUFID. (Ley 13 De 1945) | H159: 0 | K159: 0 | N159: 0
A160: 03 | B160: 02 | C160: 02 | D160: 082 | E160: Programa Mundial De Alimentos. PMA. (Ley 13 De 1945) | H160: 0 | K160: 0 | N160: 0
A161: 03 | B161: 02 | C161: 02 | D161: 083 | E161: Protocolo De Enmienda Al Tratado De Cooperación Amazónica - Ley 690 De 2001 | H161: 0 | K161: 0 | N161: 0
A162: 03 | B162: 02 | C162: 02 | D162: 084 | E162: Protocolo De Kioto De La Convención Marco De Las Naciones Unidas. Ley 629/2000 Y Decreto 1546/2005 | H162: 0 | K162: 0 | N162: 0
A163: 03 | B163: 02 | C163: 02 | D163: 085 | E163: Secretaria General Iberoamérica. (Ley 1140 De 2007) | H163: 0 | K163: 0 | N163: 0
A164: 03 | B164: 02 | C164: 02 | D164: 086 | E164: Sistema Económico Latinoamericano. SELA. (Ley 15 De 1979) | H164: 0 | K164: 0 | N164: 0
A165: 03 | B165: 02 | C165: 02 | D165: 087 | E165: Subcomisión Regional Para El Caribe Y Regiones Adyacentes. IOCARIBE. (Ley 76 De 1988) | H165: 0 | K165: 0 | N165: 0
A166: 03 | B166: 02 | C166: 02 | D166: 088 | E166: Tratado Americano De Solución De Conflictos Pacíficos. Fondo De Desarrollo Fronterizo Y Reparación Social (Ley 37 De 1961) | H166: 0 | K166: 0 | N166: 0
A167: 03 | B167: 02 | C167: 02 | D167: 089 | E167: Tribunal Internacional Para El Enjuiciamiento De Los Presuntos Responsables De Las Violaciones Graves Del Derecho Internacional Humanitario, Cometidas En El Territorio De La Ex Yugoslavia Desde 1991. (Ley 13 De 1945) | H167: 0 | K167: 0 | N167: 0
A168: 03 | B168: 02 | C168: 02 | D168: 090 | E168: Tribunal Penal Internacional Para El Enjuiciamiento De Los Presuntos Responsables Del Genocidio Y Otras Violaciones Graves Del Derecho Internacional Humanitario, Cometidos En El Territorio De Rwanda Y De Los Ciudadanos Rwandeses Presuntamente Responsables Del Genocidio Y Otras Violaciones De Esa Naturaleza, Cometidos En El Territorio De Estados Vecinos Entre Enero 1 Y Diciembre 31 De 1994. Ley 13/45 | H168: 0 | K168: 0 | N168: 0
A169: 03 | B169: 02 | C169: 02 | D169: 091 | E169: Unidad De Apoyo A La Implementación De La Convención Para La Prohibición Del Uso, Almacenamiento, Transferencia De Las Minas Antipersonal Y Sobre Su Destrucción. ISU. Contribución Voluntaria (Ley 554/2000) | H169: 0 | K169: 0 | N169: 0
A170: 03 | B170: 02 | C170: 02 | D170: 092 | E170: Unión De Naciones Suramericanas UNASUR (Ley 1440 De 2011) | H170: 0 | K170: 0 | N170: 0
A171: 03 | B171: 02 | C171: 02 | D171: 093 | E171: Unión Postal De Las Américas, España Y Portugal. UPAEP. (Leyes 60 de 1973 Y 50 De 1977) | H171: 0 | K171: 0 | N171: 0
A172: 03 | B172: 02 | C172: 02 | D172: 094 | E172: Unión Postal Universal. UPU. (Ley 19 De 1978) | H172: 0 | K172: 0 | N172: 0
A173: 03 | B173: 02 | C173: 02 | D173: 095 | E173: Oficina Inter. De Epizootias Dl 1149/1956 | H173: 0 | K173: 0 | N173: 0
A174: 03 | B174: 02 | C174: 02 | D174: 096 | E174: Instituto Interamericano Para La Investigación Del Cambio Global -IAI-Contribución Voluntaria (Ley 304 De 1996) | H174: 0 | K174: 0 | N174: 0
A175: 03 | B175: 02 | C175: 02 | D175: 097 | E175: Convención Del Metro - Oficina Internacional De Pesas Y Medidas - BIPM. Ley 1512 De 2012 | H175: 0 | K175: 0 | N175: 0
A176: 03 | B176: 02 | C176: 02 | D176: 098 | E176: Comité Global De Preferencias Comerciales Entre Países En Desarrollo (Ley 8 De 1992) | H176: 0 | K176: 0 | N176: 0
A177: 03 | B177: 02 | C177: 02 | D177: 099 | E177: Organización Mundial De Turismo O.M.T. (Ley 63 De 1989) | H177: 0 | K177: 0 | N177: 0
A178: 03 | B178: 02 | C178: 02 | D178: 100 | E178: Organización Mundial Del Comercio. OMC. (Ley 170 De 1994) | H178: 0 | K178: 0 | N178: 0
A179: 03 | B179: 02 | C179: 02 | D179: 101 | E179: Secretaria General De La Comunidad Andina. (Ley 8 De 1973) | H179: 0 | K179: 0 | N179: 0
A180: 03 | B180: 02 | C180: 02 | D180: 102 | E180: Tribunal De Justicia De La Comunidad Andina. (Ley 17 De 1980) | H180: 0 | K180: 0 | N180: 0
A181: 03 | B181: 02 | C181: 02 | D181: 103 | E181: Asociación Internacional De Presupuesto Público -ASIP, Ley 493 De 1999. | H181: 0 | K181: 0 | N181: 0
A182: 03 | B182: 02 | C182: 02 | D182: 104 | E182: Acuerdo De Cooperación Entre El Instituto Latinoamericano De Las Naciones Unidas Para La Prevención Del Delito Y El Tratamiento Del Delincuente - ILANUD (Ley 43 De 1989) | H182: 0 | K182: 0 | N182: 0
A183: 03 | B183: 02 | C183: 02 | D183: 105 | E183: Organización Para La Cooperación Y El Desarrollo Económico OCDE-Articulo 47 Ley 1450 De 2011 | H183: 0 | K183: 0 | N183: 0
A184: 03 | B184: 02 | C184: 02 | D184: 106 | E184: Tratado Constitutivo De La Conferencia De Ministros De Justicia De Los Países Iberoamericanos (Ley 176 De 1994) | H184: 0 | K184: 0 | N184: 0
A185: 03 | B185: 02 | C185: 02 | D185: 107 | E185: Convenio Hipólito Unanue Ley 41 De 1977 | H185: 0 | K185: 0 | N185: 0
A186: 03 | B186: 02 | C186: 02 | D186: 108 | E186: Instituto Suramericano De Gobierno En Salud – ISAGS – (Ley 1440/2011) | H186: 0 | K186: 0 | N186: 0
A187: 03 | B187: 02 | C187: 02 | D187: 109 | E187: Organización Internacional Del Trabajo (Ley 49 / 1919) - OIT | H187: 0 | K187: 0 | N187: 0
A188: 03 | B188: 02 | C188: 02 | D188: 110 | E188: Comisión Fullbright - Convenio De 1957 | H188: 0 | K188: 0 | N188: 0
A189: 03 | B189: 02 | C189: 02 | D189: 111 | E189: Organización De Los Estados Iberoamericanos Para La Educación, La Ciencia Y La Cultura -OEI- Ley 28 De 1960, Ley 30 De 1989 | H189: 0 | K189: 0 | N189: 0
A190: 03 | B190: 02 | C190: 02 | D190: 112 | E190: Secretaria Ejecutiva Permanente Del Convenio Andrés Bello Ley 122 De 1985; Ley 20 De 1973 Y Ley 20 De 1992. -SECAB | H190: 0 | K190: 0 | N190: 0
A191: 03 | B191: 02 | C191: 02 | D191: 113 | E191: Organización Internacional De Policía Criminal. Interpol. (D.L.3169 De 1968 Y D.L. 1717 De 1960) | H191: 0 | K191: 0 | N191: 0
A192: 03 | B192: 02 | C192: 02 | D192: 114 | E192: Asociación Iberoamericana De Tribunales De Justicia Fiscal Y Administrativa Y La Asociación Internacional De Altas Jurisdicciones Administrativas. Ley 1331 De 2009 | H192: 0 | K192: 0 | N192: 0
A193: 03 | B193: 02 | C193: 02 | D193: 115 | E193: Convenio De Cooperación Técnica Internacional CINTERFOR. Ley 13 De 1963 | H193: 0 | K193: 0 | N193: 0
A194: 03 | B194: 02 | C194: 02 | D194: 116 | E194: Asociación De Superintendentes De Seguros De América Latina -ASSAL. Articulo 97 Ley 795 De 2003 | H194: 0 | K194: 0 | N194: 0
A195: 03 | B195: 02 | C195: 02 | D195: 117 | E195: Asociación De Supervisores Bancarios De Las Américas - ASBA. Articulo 97 Ley 795 De 2003 | H195: 0 | K195: 0 | N195: 0
A196: 03 | B196: 02 | C196: 02 | D196: 118 | E196: Consejo Centroamericano De Superintendentes De Bancos, De Seguros Y De Otras Instituciones Financieras. Articulo 112 Ley 795 De 2003 | H196: 0 | K196: 0 | N196: 0
A197: 03 | B197: 02 | C197: 02 | D197: 119 | E197: Organización Iberoamericana De Seguridad Social OISS (Ley 65 / 1981) | H197: 0 | K197: 0 | N197: 0
A198: 03 | B198: 02 | C198: 02 | D198: 120 | E198: Comisión Latinoamericana De Aviación Civil- CLAC. - Ley 622/2000 | H198: 0 | K198: 0 | N198: 0
A199: 03 | B199: 02 | C199: 02 | D199: 121 | E199: Organización De Aviación Civil Internacional -OACI - Ley 12 De 1947 | H199: 0 | K199: 0 | N199: 0
A200: 03 | B200: 02 | C200: 02 | D200: 122 | E200: Centro Interamericano De Administradores Tributarios - Art. 159, Ley 223 De 1995 | H200: 0 | K200: 0 | N200: 0
A201: 03 | B201: 02 | C201: 02 | D201: 123 | E201: Consejo De Cooperación Aduanera - (Ley 10 De 1992) | H201: 0 | K201: 0 | N201: 0
A202: 03 | B202: 02 | C202: 02 | D202: 124 | E202: Centro De Las Naciones Unidas Para Asentamientos Urbanos. Hábitat. (Ley 13 De 1945) | H202: 0 | K202: 0 | N202: 0
A203: 03 | B203: 02 | C203: 02 | D203: 125 | E203: Centro Latinoamericano De Física. CLAF. (Ley 10 De 1970) | H203: 0 | K203: 0 | N203: 0
A204: 03 | B204: 02 | C204: 02 | D204: 126 | E204: Centro Regional De La ONU Para La Paz, El Desarme Y El Desarrollo De América Latina. (Ley 13/45) | H204: =F204+G204 -> 0 | K204: =I204+J204 -> 0 | N204: =L204+M204 -> 0
A205: 03 | B205: 02 | C205: 02 | D205: 127 | E205: Fondo De Asesoramiento Y Asistencia Técnica En Derechos Humanos. (Ley 13 de 1945) | H205: 0 | K205: 0 | N205: 0
... 498 more rows

Sheet Formulario 3-Clas. Económica
A1: MINISTERIO DE HACIENDA Y CRÉDITO PÚBLICO
A2: Dirección General del Presupuesto Público Nacional
A3: Formulario 3. Clasificación económica de los gastos de funcionamiento
B5: SECCIÓN
B6: UNIDAD EJECUTORA | D6: =IFERROR(VLOOKUP(D5,DESPLEGABLES!A2:B197,2,FALSE),"") -> 
C8: ANTEPROYECTO CLASIFICACIÓN ECONÓMICA DE LOS GASTOS DE FUNCIONAMIENTO - VIGENCIA | L8: 2019 | N8: (diligenciar en pesos)
A10: CLASIFICADOR PRESUPUESTAL | F10: CLASIFICADOR ECONÓMICO
C11: FUENTE FINANCIACIÓN | F11: GASTOS | M11: ACTIVOS NO FINANCIEROS | P11: ACTIVOS FINANCIEROS
A12: A | B12: B | C12: C | D12: D | E12: E | F12: F | G12: G | H12: H | I12: I | J12: J | K12: K | L12: L | M12: M | N12: N | O12: O | P12: P | Q12: Q
A13: COD | B13: CONCEPTO | C13: VALOR CLASIFICADOR APORTES NACIÓN | D13: VALOR CLASIFICADOR RECURSOS PROPIOS | E13: VALOR CLASIFICADOR POR OBJETO TOTAL | F13: REMUNERACIÓN A LOS EMPLEADOS | G13: COMPRA DE BIENES Y SERVICIOS | H13: INTERESES | I13: SUBSIDIOS | J13: DONACIONES | K13: PRESTACIONES SOCIALES | L13: OTROS GASTOS | M13: ACTIVOS FIJOS | N13: EXISTENCIAS | O13: OBJETOS DE VALOR Y ACTIVOS NO PRODUCIDOS | P13: ADQUISICIÓN ACTIVOS FINANCIEROS | Q13: VALOR CLASIFICADOR ECONÓMICO TOTAL
A14: A | B14: GASTOS DE FUNCIONAMIENTO | C14: =+C15+C17+C23+C25+C27+C29+C31+C33 -> 0 | D14: =+D15+D17+D23+D25+D27+D29+D31+D33 -> 0 | E14: =C14+D14 -> 0 | F14: =F15 -> 0 | G14: =G17+G21+G27 -> 0 | H14: =H33 -> 0 | I14: =I23 -> 0 | J14: =J23+J25 -> 0 | K14: =K23+K31 -> 0 | L14: =L15+L23+L25+L33 -> 0 | M14: =M17+M19+M25 -> 0 | N14: =N21+N23+N27 -> 0 | O14: =O17+O19+O25 -> 0 | P14: =P29 -> 0 | Q14: =SUM(Q15:Q34) -> 0
A15: 1 | B15: GASTOS DE PERSONAL | E15: =C15+D15 -> 0 | Q15: =F15+L15 -> 0
A17: 2 | B17: ADQUISICIÓN DE BIENES Y SERVICIOS | C17: =+C19+C21 -> 0 | D17: =+D19+D21 -> 0 | E17: =+E19+E21 -> 0 | Q17: =G17+M17+O17 -> 0
A19: 02.01 | B19: Adquisición de activos no financieros | E19: =C19+D19 -> 0 | Q19: =M19+O19 -> 0
A21: 02.02 | B21: Adquisiciones diferentes de activos | E21: =C21+D21 -> 0 | Q21: =G21+N21 -> 0
A23: 3 | B23: TRANSFERENCIAS CORRIENTES | E23: =C23+D23 -> 0 | Q23: =+L23+K23+J23+I23+N23 -> 0
A25: 4 | B25: TRANSFERENCIA DE CAPITAL | E25: =C25+D25 -> 0 | Q25: =J25+L25+M25+O25 -> 0
A27: 5 | B27: GASTOS DE COMERCIALIZACIÓN Y PRODUCCIÓN | E27: =C27+D27 -> 0 | Q27: =G27+N27 -> 0
A29: 6 | B29: ADQUISICIÓN DE ACTIVOS FINANCIEROS | E29: =C29+D29 -> 0 | Q29: =P29 -> 0
A31: 7 | B31: DISMINUCIÓN DE PASIVOS | E31: =C31+D31 -> 0 | Q31: =K31 -> 0
A33: 8 | B33: TRIBUTOS, MULTAS, SANCIONES E INTERESES DE MORA | E33: =C33+D33 -> 0 | Q33: =H33+L33 -> 0
A37: INSTRUCCIONES
A38: El formulario presenta los conceptos de los gastos de funcionamiento desde el punto de vista presupuestal, columna B - Filas 15-34, y económico, columnas F-P, Filas 11 y 13.
A39: La tarea consiste en desagregar el monto presupuestal, en todos y cada uno de los conceptos del clasificador económico.
A40: El monto presupuestal se debe incluir en las columnas C o D.
A41: El monto económico se debe incluir en las columnas F, G, H, I, J, k ó L si corresponden a gastos propiamente dichos, en las columnas M, N u O si corresponde su uso a la adquisición de activos no financieros, o finalmente en la columna P si se trata de la adquisición de un activo financiero.
A42: Al final del ejercicio, los valores de las columnas E y Q, deben ser iguales.
F43: Gastos
A44: Los Gastos de personal se refieren a los pagos realizados a un servidor público y que surgen de la relación empleador- empleado. | F44: El concepto económico Remuneraciones se refiere a los pagos realizados a una persona y que surgen de la relación empleador- empleado. Incluye los sueldos y salarios, y las contribuciones sociales.
A45: La Adquisición de bienes y servicios corresponde a los necesarios para el cumplimiento de las funciones de la entidad. La Adquisición de activos no financieros incluye activos fijos, objetos de valor y activos no producidos; Las Adquisiciones diferentes de activos incluyen la compra de materiales y suministros y la adquisición de servicios. | F45: El concepto económico Compra de bienes y servicios comprende los utilizados por la entidad para desarrollar su objeto misional. No incluye los activos fijos, los que adquiera y distribuya sin transformación, los que adquiere para formación de capital por cuenta propia ni los objetos de valor.
A46: Las Transferencias corrientes son efectuadas con base legal por las entidades, sin recibir a cambio ningún bien, servicio o activo como contrapartida directa. Incluye las subvenciones, prestaciones sociales, las sentencias y conciliaciones, entre otros conceptos. | F46: El concepto económico Intereses hace referencia a los gastos en que incurre la entidad por utilizar recursos obtenidos en préstamo.
A47: Las Transferencias de capital, a diferencia de las corrientes, condicionan al receptor a la adquisición de un activo o al pago de un pasivo. | F47: El concepto económico Subsidios hace referencia a transferencias sin contrapartida, total o parcial, que se hacen a las empresas en función de los niveles de actividad productiva o de los precios de los bienes y servicios que producen, venden, exportan o importan.
A48: Los Gastos de comercialización y producción contienen los insumos necesario para realización de estas actividades por la entidad | F48: El concepto económico Donaciones son transferencias sin contrapartida, total o parcial, a otras unidades de gobierno o a organismos internacionales y que no cumplen ocn la definición de impuesto, subsidio o contribución social.
A49: La Adquisición de activos financieros se refiere a la compra de derechos financieros, por ejemplo: acciones, bonos, y TES. Incluye la concesión de préstamos. | F49: El concepto económico Prestaciones sociales son transferencias a los hogares para atender necesidades que surgen de riesgos sociales en salud, empleo, vivienda, educación, edad y pensión. Corresponden a prestaciones de seguridad social, asistencia social y las relacionadas con el empleo.
A50: La Disminución de pasivos corresponde a obligaciones de gasto sustentadas en el recaudo previo de los recursos. Incluye cesantías, devolución del ahorro voluntario de los trabajadores y de depósitos en prenda. | F50: El concepto económico Otros gastos comprenden los de la propiedad (como dividendos, excedentes a Nación), transferencias no clasificadas en otra parte, pago de primas, tasas e indemnizaciones.
A51: Los Tributos, multas, sanciones e intereses de mora incluyen los pagos por impuestos, contribuciones, estampillas y tasas y derechos administrativos. | F51: Activos no financieros
F52: El concepto económico Activos fijos hace referencia a activos producidos que se utilizan repetida o continuamente en procesos de producción durante más de un año.
F53: El concepto económico Existencias hace referencia a los activos producidos que han entrado en existencia en el período actual o en un período anterior, y que se mantienen para ser vendidos, utilizados en la producción o destinados a otro uso en una fecha posterior.
F54: El concepto económico Objetos de Valor hace referencia a bienes de considerable valor que no se usan para fines de producción o consumo, sino que se mantienen a lo largo del tiempo principalmente como depósitos de valor; por su parte, los Activos no producidos incluyen las tierras y terrenos, los yacimientos de minerales del subsuelo, los peces en los mares abiertos pero territoriales y el espectro radial y las creaciones de la sociedad.
F55: Activos financieros
F56: El concepto económico Adquisición de activos financieros se refiere a la compra de derechos financieros, por ejemplo: acciones, bonos y TES. Incluye la concesión de préstamos.

Sheet Formulario 4- Planta
A1: MINISTERIO DE HACIENDA Y CRÉDITO PÚBLICO
A2: Dirección General del Presupuesto Público Nacional
A3: Formulario 4. Anteproyecto Planta de personal
A4: SECCIÓN
A5: UNIDAD EJECUTORA | B5: =IFERROR(VLOOKUP(B4,DESPLEGABLES!A2:B197,2,FALSE),"") -> 
D7: ANTEPROYECTO PLANTA DE PERSONAL - VIGENCIA | L7: 2019 | O7: (diligenciar en pesos)
A9: DENOMINACIÓN DE CARGOS | B9: Grado | C9: No. Cargos | D9: Salario | W9: Remuneraciones no constitutivas de Factor Salarial | AG9: Contribuciones Inherentes a la Nómina | AR9: Total
D10: Factores Salariales comunes | Q10: Factores Salariales Especiales | V10: Total | W10: Prestaciones sociales según definición legal | AA10: Otras remuneraciones no constitutivas de Factor Salarial | AF10: Total | AG10: Pensiones | AH10: Salud | AI10: Aportes de Cesantías | AJ10: Cajas de Compensación Familiar | AK10: Aportes Generales al Sistema de Riesgos Laborales | AL10: Aportes al ICBF | AM10: Aportes al SENA | AN10: Aportes a la ESAP | AO10: Aportes a escuelas industriales e institutos técnicos | AP10: Subsidio de vivienda Fuerzas Militares y Policía | AQ10: Total
D11: Sueldo básico | F11: Gastos de representación | G11: Prima técnica salarial | H11: Subsidio de alimentación | I11: Auxilio de transporte | J11: Prima de servicio | K11: Bonificación por servicios prestados | L11: Horas extras, dominicales, festivos y recargos | M11: Prima de navidad | N11: Prima de vacaciones | O11: Viáticos de los funcionarios en comisión | P11: Subtotal 1 | Q11: Factor Salarial Especial 1 | R11: Factor Salarial Especial 2 | S11: Factor Salarial Especial 3 | T11: Factor Salarial Especial 4 | U11: Subtotal 2 | W11: Sueldo de vacaciones | X11: Indemnización por vacaciones | Y11: Bonificación especial de recreación | Z11: Subtotal 1 | AA11: Remuneración 1 | AB11: Remuneración 2 | AC11: Remuneración 3 | AD11: Remuneración 4 | AE11: Subtotal 2 | AO11: Institutos | AP11: Institutos | AQ11: Institutos
D12: Mes | E12: Anual | AO12: Técnicos | AP12: Técnicos | AQ12: Técnicos
A13: 1 | B13: 2 | C13: 3 | E13: 4.1 | F13: 4.2 | G13: 4.3 | H13: 4.4 | I13: 4.5 | J13: 4.6 | K13: 4.7 | L13: 4.8 | M13: 4.9 | N13: 4.1 | O13: 4.11 | P13: 4 | Q13: 5.1 | R13: 5.2 | S13: 5.3 | T13: 5.4 | U13: 5 | V13: 4+5= 6 | W13: 7.1 | X13: 7.2 | Y13: 7.3 | Z13: 7 | AA13: 8.1 | AB13: 8.2 | AC13: 8.3 | AD13: 8.4 | AE13: 8 | AF13: 7+8=9 | AG13: 10.1 | AH13: 10.2 | AI13: 10.3 | AJ13: 10.4 | AK13: 10.5 | AL13: 10.6 | AM13: 10.7 | AN13: 10.8 | AO13: 10.9 | AP13: 10.1 | AQ13: 10 | AR13: 6+9+10=11
A14: EMPLEADOS PÚBLICOS
A15: NIVEL DIRECTIVO
A23: NIVEL ASESOR
A30: NIVEL EJECUTIVO
A38: NIVEL PROFESIONAL
A45: NIVEL TÉCNICO
A53: NIVEL ASISTENCIAL
A60: TOTAL EMPLEADOS PÚBLICOS
A61: TRABAJADORES OFICIALES
A75: TOTAL TRABAJADORES OFICIALES
A76: TOTAL PLANTA DE PERSONAL

Sheet Formulario 4A - Nómina
A1: MINISTERIO DE HACIENDA Y CRÉDITO PÚBLICO
A2: Dirección General del Presupuesto Público Nacional
A3: Formulario 4A Certificación de Nómina
B5: SECCIÓN
B6: UNIDAD EJECUTORA | C6: =IFERROR(VLOOKUP(C5,DESPLEGABLES!A2:B196,2,FALSE),"") -> 
B8: ANTEPROYECTO COSTO DE NÓMINA - VIGENCIA | E8: 2019 | G8: (diligenciar en pesos)
B10: DENOMINACIÓN DE CARGO | C10: Grado | D10: Cargos Provistos | E10: Cargos Vacantes | F10: Total Cargos de Planta | G10: Asignación Básica Mensual
D11: Provistos | G11: Básica
G12: Mensual
B13: Empleados Públicos
B21: Total Empleados Públicos
B22: Trabajadores Oficiales
B30: Total Trabajadores Oficiales
B31: Total Personal
B39: Ciudad y fecha | E39: Jefe de Personal

Sheet Formulario 5- Deuda Pública
A1: MINISTERIO DE HACIENDA Y CRÉDITO PÚBLICO
A2: Dirección General del Presupuesto Público Nacional
A3: Formulario 5. Pagos Programados de Deuda Pública
B5: SECCIÓN
B6: UNIDAD EJECUTORA | D6: =IFERROR(VLOOKUP(D5,DESPLEGABLES!A2:B197,2,FALSE),"") -> 
C8: ANTEPROYECTO DEUDA PÚBLICA - VIGENCIA | I8: 2019 | L8: (diligenciar en pesos)
A10: Clase de Prestamista | B10: Identificación Código del Empréstito | C10: Saldo Emprestito Moneda Original | E10: Pagos Próxima Vigencia, (t+1), (Moneda Original) | I10: Tipo de Cambio | J10: Pagos Próxima Vigencia, (t+1), (Pesos Colombianos)
E11: Amortizaciones | F11: Intereses | G11: Comisiones | H11: Total Pagos | J11: Amortizaciones | K11: Intereses | L11: Comisiones | M11: Total Pagos
C12: Moneda | D12: Valor

Sheet DESPLEGABLES
A1: SECCIÓN | B1: UNIDAD EJECUTORA | E1: COD | G1: IMPUESTOS INDIRECTOS -FE | H1: CÓD | J1: CONTRIBUCIONES SOCIALES- EP | K1: CÓD | M1: CONTRIBUCIONES SOCIALES -FE | N1: CÓD | P1: CONTRIBUCIONES DIVERSAS - FE | Q1: CÓD | S1: CONTRIBUCIONES DIVERSAS - ESTAPÚBLICO | T1: CÓD | V1: TASAS Y DERECHOS ADMINISTRATIVOS - EP | W1: CÓD | Y1: DERECHOS ECONÓMICOS POR USO DE RECURSOS NATURALES- EP | Z1: CÓD | AB1: DERECHOS ECONÓMICOS POR USO DE RECURSOS NATURALES- FE | AC1: CÓD | AE1: TRANSFERENCIAS CORRIENTES- EP | AF1: CÓD | AH1: TRANSFERENCIAS CORRIENTES- FE | AI1: CÓD | AK1: CPC
A2: 010101 | B2: CONGRESO DE LA REPUBLICA SENADO GESTION GENERAL | D2: CONTRIBUCIÓN ENTIDADES VIGILADAS CONTRALORIA GENERAL NACION | E2: 602 | G2: Impuesto social a las armas y municiones | H2: 10 | J2: Salud | K2: 01 | M2: Salud | N2: 01 | P2: Contribución - Comisión de Regulación de Comunicaciones (CRC) | Q2: 01 | S2: Contribución - Superintendencia de Sociedades | T2: 04 | V2: Expedición de visas | W2: 01 | Y2: Derecho económico por uso del subsuelo | Z2: 01 | AB2: Regalías y compensaciones monetarias | AC2: 04 | AE2: Indemnizaciones relacionadas con seguros no de vida | AF2: 01 | AH2: Indemnizaciones relacionadas con seguros no de vida | AI2: 01 | AK2: Agricultura, silvicultura y productos de la pesca
A3: 010102 | B3: CONGRESO DE LA REPUBLICA - CAMARA DE REPRESENTANTES - GESTION GENERAL | D3: CONTRIBUCIÓN ENTIDADES VIGILADAS SUPERINTENDENCIA SUBSIDIO FAMILIAR | E3: 603 | G3: Impuesto de remate y adjudicaciones | H3: 11 | J3: Pensión | K3: 02 | M3: Pensión | N3: 02 | P3: Contribución - Comisión de Regulación de Energía y Gas (CREG) | Q3: 02 | S3: Contribución - Superintendencia de Vigilancia y Seguridad Privada | T3: 05 | V3: Expedición de pasaportes | W3: 02 | Y3: Concesiones mineras | Z3: 02 | AE3: Sentencias y conciliaciones | AF3: 02 | AH3: Sentencias y conciliaciones | AI3: 02 | AK3: Minerales; electricidad, gas y agua
A4: 020101 | B4: PRESIDENCIA DE LA REPUBLICA - GESTION GENERAL | D4: FINANCIACION SECTOR JUSTICIA | E4: 609 | G4: Sobretasa nacional a la gasolina | H4: 12 | J4: Contribuciones asignaciones de retiro militares y policía | K4: 03 | P4: Contribución - Comisión de Regulación de Agua Potable y Saneamiento Básico (CRA) | Q4: 03 | S4: Contribución - Superintendencia de la Economía Solidaria | T4: 06 | V4: Apostilla o legalización | W4: 03 | Y4: Contraprestaciones portuarias | Z4: 03 | AE4: Devolución IVA | AF4: 04 | AH4: Prescripción de depósitos judiciales | AI4: 03 | AK4: Productos alimenticios, bebidas y tabaco; textiles, prendas de vestir y productos de cuero
A5: 020900 | B5: AGENCIA PRESIDENCIAL DE COOPERACIÓN INTERNACIONAL DE COLOMBIA, APC - COLOMBIA | D5: FONDO DE DEFENSA NACIONAL | E5: 6010 | G5: Sobretasa al ACPM | H5: 13 | P5: Contribución - Superintendencia del Subsidio Familiar | Q5: 07 | S5: Contribución de vigilancia - Superintendencia de Industria y Comercio | T5: 08 | V5: Protocolización de escrituras públicas | W5: 04 | Y5: Concesiones parques naturales | Z5: 05 | AE5: Transferencias de otras unidades de gobierno | AF5: 05 | AH5: Devolución IVA | AI5: 04 | AK5: Otros bienes transportables, (excepto productos metálicos, maquinaria y equipo)
A6: 021100 | B6: UNIDAD NACIONAL PARA LA GESTIÓN DEL RIESGO DE DESASTRES | D6: FONDO ESTUPEFACIENTES - MINSALUD | E6: 6013 | G6: Impuesto de salida de extranjeros | H6: 15 | J6: CONTRIBUCIONES ASOCIADAS A NÓMINA - EP | K6: CÓD | M6: CONTRIBUCIONES ASOCIADAS A NÓMINA -FE | N6: CÓD | P6: Contribución - Fondo de Compensación Ambiental | Q6: 13 | S6: Contribución de seguimiento - Superintendencia de Industria y Comercio | T6: 09 | V6: Expedición de certificaciones en el exterior | W6: 05 | AE6: Recursos por bienes mostrencos y vocaciones hereditarias | AF6: 07 | AH6: Transferencias de otras unidades de gobierno | AI6: 05 | AK6: Productos metálicos, maquinaria y equipo
A7: 021200 | B7: AGENCIA COLOMBIANA PARA LA REINTEGRACIÓN DE PERSONAS Y GRUPOS ALZADOS EN ARMAS | D7: FONDOS INTERNOS MINISTERIO DEFENSA | E7: 6014 | J7: ICBF | K7: 01 | M7: Escuelas industriales e institutos técnicos | N7: 04 | P7: Contribución - Fondo Apoyo Financiero Zonas No Interconectadas (FAZNI) | Q7: 14 | S7: Contribución - Superintendencia Financiera de Colombia | T7: 10 | V7: Certificación sobre la existencia legal de sociedades | W7: 06 | AE7: Compensación UPC – SSS | AF7: 09 | AH7: Recursos en consignación | AI7: 06 | AK7: Construcción y servicios de la construcción
A8: 021300 | B8: AGENCIA NACIONAL INMOBILIARIA VIRGILIO BARCO VARGAS | D8: FONDOS INTERNOS POLICIA NACIONAL | E8: 6015 | J8: SENA | K8: 02 | M8: Aportes de cesantías | N8: 05 | P8: Contribución - Fondo Apoyo Financiero para la Energización de las Zonas Rurales Interconectadas (FAER) | Q8: 15 | S8: Contribución - Superintendencia de Servicios Públicos Domiciliarios | T8: 11 | V8: Reconocimiento y autenticación de firmas ante cónsules colombianos | W8: 07 | Y8: CÁLCULO POR INGRESOS CORRIENTES | AH8: Recursos por procesos de extinción de dominio | AI8: 08 | AK8: Servicios de venta y de distribución; alojamiento; servicios de suministro de comidas y bebidas; servicios de transporte; y servicios de distribución de electricidad, gas y agua
A9: 021400 | B9: AGENCIA DE RENOVACION DEL TERRITORIO – ART | D9: FONDO ROTATORIO DE MINAS Y ENERGÍA | E9: 6017 | J9: ESAP | K9: 03 | P9: Contribución - Fondo de Energías No Convencionales y Gestión Eficiente de la Energía (FENOGE) | Q9: 16 | S9: Contribución pensionados militares y policía | T9: 23 | V9: Expedición de tarjetas de registro consular | W9: 08 | AH9: Compensación UPC – SSS | AI9: 09 | AK9: Servicios financieros y servicios conexos, servicios inmobiliarios y servicios de leasing
A10: 030101 | B10: DEPARTAMENTO DE PLANEACION - GESTION GENERAL | D10: FONDO NACIONAL DE REGALIAS | E10: 6018 | P10: Contribución - Fondo Especial de Energía Social (FOES) | Q10: 17 | S10: Derecho económico por precios altos | T10: 33 | V10: Trámite de nacionalidad colombiana por adopción | W10: 09 | Y10: CONTRIBUCIONES SOCIALES- EP | AB10: TASAS Y DERECHOS ADMINISTRATIVOS - EP | AE10: IMPUESTOS INDIRECTOS -FE | AK10: Servicios prestados a las empresas y servicios de producción
A11: 030300 | B11: UNIDAD ADMINISTRATIVA ESPECIAL - AGENCIA NACIONAL DE CONTRATACIÓN PÚBLICA - COLOMBIA COMPRA EFICIENTE. | D11: ESCUELAS INDUSTRIALES E INSTITUTOS TECNICOS | E11: 6019 | P11: Contribución - Fondo Especial Cuota de Fomento de Gas Natural | Q11: 18 | S11: Derecho económico por participación en la producción | T11: 34 | V11: Trámite de renuncia a la nacionalidad colombiana | W11: 10 | Y11: 1.02.1.01.01. Salud | AB11: 1.02.2.01. Expedición de visas | AE11: 1.01.2.10. Impuesto social a las armas y municiones | AK11: Servicios para la comunidad, sociales y personales
A12: 032400 | B12: SUPERINTENDENCIA DE SERVICIOS PUBLICOS DOMICILIARIOS | D12: FONDO SOLIDARIDAD Y GARANTIAS EN SALUD | E12: 6021 | M12: CONTRIBUCIONES ESPECIALES -FE | N12: CÓD | P12: Contribución - Fondo Especial para el programa de Normalización de Redes Eléctricas (Prone) | Q12: 19 | S12: Contribución Nacional de Valorización | T12: 40 | V12: Expedición de certificados de antepasados de extranjeros nacionalizados como colombianos por adopción | W12: 11 | Y12: 1.02.1.01.02. Pensión | AB12: 1.02.2.02. Expedición de pasaportes | AE12: 1.01.2.11. Impuesto de remate y adjudicaciones
A13: 032500 | B13: FONDO NACIONAL DE REGALIAS | D13: FONDO DE SOLIDARIDAD PENSIONAL | E13: 6022 | G13: MULTAS Y SANCIONES | H13: CÓD | M13: Cuota de fiscalización y auditaje | N13: 01 | P13: Contribución - Fondo de Solidaridad para Subsidios y Redistribución de Ingresos | Q13: 20 | S13: Contribución Industria Militar – ICFE | T13: 45 | V13: Expedición de certificados de no objeción a la permanencia en el exterior de estudiantes colombianos | W13: 12 | Y13: 1.02.1.01.03. Contribuciones asignaciones de retiro militares y policía | AB13: 1.02.2.03. Apostilla o legalización | AE13: 1.01.2.12. Sobretasa nacional a la gasolina | AH13: TASAS Y DERECHOS ADMINISTRATIVOS - FE
A14: 040101 | B14: DEPARTAMENTO ADMINISTRATIVO NACIONAL DE ESTADISTICA (DANE) - GESTION GENERAL | D14: COMISION DE REGULACION DE COMUNICACIONES | E14: 6023 | G14: Infracciones | H14: 01 | M14: Aporte a la administración de justicia | N14: 02 | P14: Contribución - Fondo Emprender | Q14: 21 | S14: Contribución - Superintendencia de Puertos y Transporte | T14: 12 | V14: Expedición de cédulas de ciudadanía | W14: 13 | AB14: 1.02.2.04. Protocolización de escrituras públicas | AE14: 1.01.2.13. Sobretasa al ACPM | AH14: 1.02.2.41. Autorización para el manejo de sustancias químicas controladas
A15: 040200 | B15: FONDO ROTATORIO DEL DANE | D15: COMISION DE REGULACION DE ENERGIA Y GAS | E15: 6024 | G15: Zonas francas | H15: 02 | M15: Recaudo ley 55 de 1985 Superintendencia de Notariado y Registro | N15: 03 | P15: Contribución - Fondo Nacional de las Universidades Estatales de Colombia | Q15: 22 | V15: Expedición de tarjetas de identidad | W15: 14 | Y15: CONTRIBUCIONES ASOCIADAS A NÓMINA - EP | AB15: 1.02.2.05. Expedición de certificaciones en el exterior | AE15: 1.01.2.15. Impuesto de salida de extranjeros | AH15: 1.02.2.50. Tasa para la sostenibilidad del RUNT
A16: 040300 | B16: INSTITUTO GEOGRAFICO AGUSTIN CODAZZI - IGAC | D16: COMISION DE REGULACION DE AGUA POTABLE | E16: 6025 | G16: Multas Superintendencias | H16: 03 | P16: Cuota de compensación militar - Fondo de Defensa Nacional | Q16: 24 | V16: Expedición de certificaciones no sujetas a reserva legal | W16: 15 | Y16: 1.02.1.02.01. ICBF | AB16: 1.02.2.06. Certificación sobre la existencia legal de sociedades | AH16: 1.02.2.52. Fiscalización y seguimiento a títulos mineros
A17: 050101 | B17: DEPARTAMENTO FUNCION PUBLICA - GESTION GENERAL | D17: INSTITUTO DE ESTUDIOS DEL MINISTERIO PUBLICO | E17: 6031 | G17: Comparendos | H17: 04 | P17: Aporte sobre pólizas de seguros - Fondo Nacional de Bomberos de Colombia | Q17: 25 | S17: CONTRIBUCIONES DIVERSAS - NACIÓN | T17: CÓD | V17: Expedición de bases de datos sujeta a reserva legal | W17: 16 | Y17: 1.02.1.02.02. SENA | AB17: 1.02.2.07. Reconocimiento y autenticación de firmas ante cónsules colombianos | AE17: CONTRIBUCIONES ESPECIALES -FE
A18: 050300 | B18: ESCUELA SUPERIOR DE ADMINISTRACION PUBLICA (ESAP) | D18: FONDO SALUD FUERZAS MILITARES | E18: 6033 | G18: Otras multas | H18: 05 | P18: Contribución - Subcuenta de Riesgos Catastróficos y Accidentes de Tránsito (Fosyga) | Q18: 26 | S18: Prima sobre contratos de estabilidad jurídica | T18: 32 | V18: Expedición de certificaciones excepcionales de nacionalidad | W18: 17 | Y18: 1.02.1.02.03. ESAP | AB18: 1.02.2.08. Expedición de tarjetas de registro consular | AE18: 1.02.1.03.01. Cuota de fiscalización y auditaje
A19: 110101 | B19: MINIRELACIONES EXTERIORES - GESTION GENERAL | D19: FONDO DE SALUD POLICIA NACIONAL | E19: 6034 | G19: Sanciones Tributarias | H19: 06 | P19: Arancel judicial - Ley 1394 de 2010 | Q19: 27 | S19: Contribución por explotación o exportación de petróleo | T19: 35 | V19: Expedición de certificados de Registro Civil | W19: 18 | AB19: 1.02.2.09. Trámite de nacionalidad colombiana por adopción | AE19: 1.02.1.03.02. Aporte a la administración de justicia | AH19: TRANSFERENCIAS CORRIENTES- FE
A20: 110200 | B20: FONDO ROTATORIO DEL MINISTERIO DE RELACIONES EXTERIORES | D20: FONDO COMPENSACION AMBIENTAL | E20: 6035 | G20: Sanciones Aduaneras | H20: 07 | P20: Arancel judicial CSJ - Ley 1653 de 2013 | Q20: 28 | V20: Impresión de publicaciones de la Organización Electoral | W20: 19 | AB20: 1.02.2.10. Trámite de renuncia a la nacionalidad colombiana | AE20: 1.02.1.03.03. Recaudo Ley 55 de 1985 Superintendencia de Notariado y Registro | AH20: 1.02.6.01. Indemnizaciones relacionadas con seguros no de vida
A21: 110400 | B21: UNIDAD ADMINISTRATIVA ESPECIAL MIGRACION COLOMBIA | D21: PENSIONES EPSA-CVC | E21: 6036 | G21: Sanciones Cambiarias | H21: 08 | P21: Arancel judicial - Ley 1743 de 2014 | Q21: 29 | V21: Venta de licencias de software | W21: 20 | Y21: CONTRIBUCIONES DIVERSAS - ESTAPÚBLICO | AB21: 1.02.2.11. Expedición de certificados de antepasados de extranjeros nacionalizados como colombianos por adopción | AH21: 1.02.6.02. Sentencias y conciliaciones
A22: 120101 | B22: MINISTERIO DE JUSTICIA Y DEL DERECHO - GESTIÓN GENERAL | D22: FONDO SOLIDARIDAD PARA SUBSIDIOS Y REDISTRIBUCION INGRESOS | E22: 6039 | G22: Sanciones Disciplinarias | H22: 09 | P22: Contribución especial arbitral | Q22: 30 | V22: Expedición de cédula de extranjería | W22: 21 | Y22: 1.02.1.04.04. Contribución - Superintendencia de Sociedades | AB22: 1.02.2.12. Expedición de certificados de no objeción a la permanencia en el exterior de estudiantes colombianos | AE22: CONTRIBUCIONES DIVERSAS - FE | AH22: 1.02.6.03. Prescripción de depósitos judiciales
A23: 120400 | B23: SUPERINTENDENCIA DE NOTARIADO Y REGISTRO | D23: FONDO SEGURIDAD Y CONVIVENCIA CIUDADANA | E23: 6040 | G23: Sanciones Contractuales | H23: 10 | P23: Contribución especial para laudos arbitrales de contenido económico | Q23: 31 | V23: Certificación de movimientos migratorios | W23: 22 | Y23: 1.02.1.04.05. Contribución - Superintendencia de Vigilancia y Seguridad Privada | AB23: 1.02.2.13. Expedición de cédulas de ciudadanía | AE23: 1.02.1.04.01. Contribución - Comisión de Regulación de Comunicaciones (CRC) | AH23: 1.02.6.04. Devolución IVA - Instituciones de educación superior
A24: 120800 | B24: INSTITUTO NACIONAL PENITENCIARIO Y CARCELARIO - INPEC | D24: FONDO SUBSIDIO SOBRETASA GASOLINA | E24: 6041 | G24: Sanciones Comerciales | H24: 11 | P24: Aporte afiliados al Sistema General de Pensiones - Subcuenta de Solidaridad | Q24: 36 | V24: Permisos de ingreso y permanencia en el país | W24: 23 | Y24: 1.02.1.04.06. Contribución – Superintendencia de la Economía Solidaria | AB24: 1.02.2.14. Expedición de tarjetas de identidad | AE24: 1.02.1.04.02. Contribución - Comisión de Regulación de Energía y Gas (CREG) | AH24: 1.02.6.05. Transferencias de otras unidades de gobierno
A25: 121000 | B25: UNIDAD ADMINISTRATIVA ESPECIAL AGENCIA NACIONAL DE DEFENSA JURIDICA DEL ESTADO | D25: FONDO PENSIONES SUPERINTENDENCIAS Y CARBOCOL | E25: 6042 | G25: Sanciones Administrativas y Fiscales | H25: 12 | P25: Aporte afiliados al Sistema General de Pensiones - Subcuenta de Subsistencia | Q25: 37 | V25: Expedición de salvoconductos de permanencia y salida del país | W25: 24 | Y25: 1.02.1.04.08. Contribución de vigilancia - Superintendencia de Industria y Comercio | AB25: 1.02.2.15. Expedición de certificaciones no sujetas a reserva legal | AE25: 1.02.1.04.03. Contribución - Comisión de Regulación de Agua Potable y Saneamiento Básico (CRA) | AH25: 1.02.6.06. Recursos de terceros en consignación
A26: 121100 | B26: UNIDAD DE SERVICIOS PENITENCIARIOS Y CARCELARIOS - USPEC | D26: UNIDAD ADMINISTRATIVA ESPECIAL DE COMERCIO EXTERIOR | E26: 6043 | P26: Aportes diferenciales - Fondo de Solidaridad Pensional | Q26: 38 | V26: Expedición de información no sujeta a reserva legal | W26: 25 | Y26: 1.02.1.04.09. Contribución de seguimiento - Superintendencia de Industria y Comercio | AB26: 1.02.2.16. Expedición de bases de datos sujeta a reserva legal | AE26: 1.02.1.04.07. Contribución - Superintendencia del Subsidio Familiar | AH26: 1.02.6.08. Recursos por procesos de extinción de dominio
A27: 130101 | B27: MINISTERIO DE HACIENDA Y CREDITO PUBLICO - GESTION GENERAL | D27: FONDO DE SOBRETASA AL ACPM | E27: 6046 | P27: Aporte pensionados - Fondo de Solidaridad Pensional | Q27: 39 | V27: Expedición de la tarjeta de movilidad fronteriza | W27: 26 | Y27: 1.02.1.04.10. Contribución - Superintendencia Financiera de Colombia | AB27: 1.02.2.17. Expedición de certificaciones excepcionales de nacionalidad | AE27: 1.02.1.04.13. Contribución - Fondo de Compensación Ambiental | AH27: 1.02.6.09. Compensación UPC – SSS
A28: 130117 | B28: UNIDAD ADMINISTRATIVA ESPECIAL AGENCIA DEL INSPECTOR GENERAL DE TRIBUTOS, RENTAS Y CONTRIBUCIONES PARAFISCALES – ITRC | D28: FONDO PARA DEFENSA DE DERECHOS E INTERESES COLECTIVOS | E28: 6049 | P28: Contribución cultural a la boletería de los espectáculos públicos | Q28: 41 | V28: Inscripción al sistema de migración automática | W28: 27 | Y28: 1.02.1.04.11. Contribución - Superintendencia de Servicios Públicos Domiciliarios | AB28: 1.02.2.18. Expedición de certificados de Registro Civil | AE28: 1.02.1.04.14. Contribución - Fondo Apoyo Financiero Zonas No Interconectadas (FAZNI)
A29: 130118 | B29: UNIDAD ADMINISTRATIVA ESPECIAL UNIDAD DE PROYECCIÓN NORMATIVA Y ESTUDIOS DE REGULACIÓN FINANCIERA – URF | D29: FONDO DE INVESTIGACION EN SALUD | E29: 6050 | P29: Recursos por la explotación de juegos de suerte y azar – Fondo de Investigación en Salud | Q29: 42 | V29: Verificación migratoria en el sistema PLATINUM | W29: 28 | Y29: 1.02.1.04.12. Contribución - Superintendencia de Puertos y Transporte | AB29: 1.02.2.19. Impresión de publicaciones de la Organización Electoral | AE29: 1.02.1.04.15. Contribución - Fondo Apoyo Financiero para la Energización de las Zonas Rurales Interconectadas (FAER)
A30: 130119 | B30: COLJUEGOS | D30: FONDO CONSERVACIÓN DE MUSEOS Y TEATROS | E30: 6051 | P30: Contribución - Fondo Industria de la Construcción (FIC) | Q30: 43 | V30: Expedición de registros sanitarios | W30: 29 | Y30: 1.02.1.04.23. Contribución pensionados militares y policía | AB30: 1.02.2.20. Venta de licencias de software | AE30: 1.02.1.04.16. Contribución - Fondo de Energías No Convencionales y Gestión Eficiente de la Energía (FENOGE)
A31: 130800 | B31: UNIDAD ADMINISTRATIVA ESPECIAL CONTADURIA GENERAL DE LA NACION | D31: FONDO APOYO FINANCIERO ZONAS NO INTERCONECTADAS (FAZNI) | E31: 6052 | P31: Contribución SOAT - Fondo Nacional de Seguridad Vial | Q31: 44 | V31: Renovación de la capacidad de laboratorios | W31: 30 | Y31: 1.02.1.04.33. Derecho económico por precios altos | AB31: 1.02.2.21. Expedición de cédulas de extranjería | AE31: 1.02.1.04.17. Contribución - Fondo Especial de Energía Social (FOES)
A32: 130900 | B32: SUPERINTENDENCIA DE LA ECONOMIA SOLIDARIA | D32: FONDO APOYO FINANCIERO ZONAS RURALES INTERCONECTADAS(FAER) | E32: 6053 | P32: Contribución - Fondo de Seguridad y Convivencia | Q32: 46 | V32: Realización de exámenes de laboratorio | W32: 31 | Y32: 1.02.1.04.34. Derecho económico por participación en la producción | AB32: 1.02.2.22. Certificación de movimientos migratorios | AE32: 1.02.1.04.18. Contribución - Fondo Especial Cuota de Fomento de Gas Natural
A33: 131000 | B33: UNIDAD ADMINISTRATIVA ESPECIAL DIRECCION DE IMPUESTOS Y ADUANAS NACIONALES | D33: FONDO RECURSOS MONITOREO Y VIGILANCIA EDUCACION SUPERIOR | E33: 6055 | V33: Expedición de certificados de registro sanitario | W33: 32 | Y33: 1.02.1.04.40. Contribución Nacional de Valorización | AB33: 1.02.2.23. Permisos de ingreso y permanencia en el país | AE33: 1.02.1.04.19. Contribución - Fondo Especial para el programa de Normalización de Redes Eléctricas (Prone)
A34: 131200 | B34: UNIDAD DE INFORMACION Y ANALISIS FINANCIERO | D34: FONDO FONPET - MAGISTERIO | E34: 6056 | V34: Peajes | W34: 33 | Y34: 1.02.1.04.45. Contribución Industria Militar - ICFE | AB34: 1.02.2.24. Expedición de salvoconductos de permanencia y salida del país | AE34: 1.02.1.04.20. Contribución – Fondo de Solidaridad para Subsidios y Redistribución de Ingresos
A35: 131300 | B35: SUPERINTENDENCIA FINANCIERA DE COLOMBIA | D35: FONDO ESPECIAL DE ENERGIA SOCIAL-FOES | E35: 6057 | V35: Permiso para transporte de carga | W35: 34 | AB35: 1.02.2.25. Expedición de información no sujeta a reserva legal | AE35: 1.02.1.04.21. Contribución - Fondo Emprender
A36: 131401 | B36: UGPPP - GESTION GENERAL | D36: FONDO DE PUBLICACIONES DE LA CONTRALORIA GENERAL REPUBLICA | E36: 6059 | V36: Autorización para el uso de materiales radiactivos y nucleares | W36: 35 | AB36: 1.02.2.26. Expedición de la tarjeta de movilidad fronteriza | AE36: 1.02.1.04.22. Contribución – Fondo Nacional de las Universidades Estatales de Colombia
A37: 131500 | B37: FONDO ADAPTACION | D37: FONDO DE PENSIONES FONDO ROTATORIO DE NOTARIADO Y REGISTRO | E37: 6060 | V37: Evaluación de licencias y trámites ambientales | W37: 36 | Y37: MULTAS Y SANCIONES - ESTAPÚBLICO | AB37: 1.02.2.27. Inscripción al sistema de migración automática | AE37: 1.02.1.04.24. Cuota de compensación militar - Fondo de Defensa Nacional
A38: 140100 | B38: SERVICIO DE LA DEUDA PUBLICA NACIONAL | D38: FONDO ESPECIAL COMISION NACIONAL DE BUSQUEDA (ART 18 LEY 971/05) | E38: 6061 | V38: Seguimiento a licencias y trámites ambientales | W38: 37 | Y38: 1.02.3.01.01. Infracciones | AB38: 1.02.2.28. Verificación migratoria en el sistema PLATINUM | AE38: 1.02.1.04.25. Aporte sobre pólizas de seguros - Fondo Nacional de Bomberos de Colombia
A39: 150101 | B39: MINISTERIO DE DEFENSA NACIONAL - GESTION GENERAL | D39: FONDO ESPECIAL CUOTA DE FOMENTO DE GAS NATURAL | E39: 6062 | V39: Tasa de inspección y vigilancia - Superintendencia Nacional de Salud | W39: 38 | Y39: 1.02.3.01.02. Zonas francas | AB39: 1.02.2.29. Expedición de registros sanitarios | AE39: 1.02.1.04.26. Contribución - Subcuenta de Riesgos Catastróficos y Accidentes de Tránsito (Fosyga)
A40: 150102 | B40: MINISTERIO DE DEFENSA NACIONAL - COMANDO GENERAL | D40: FONDO ESPECIAL PARA PROGRAMA DE NORMALIZACIÓN DE REDES ELECTRICAS | E40: 6063 | V40: Expedición de tarjetas profesionales | W40: 39 | Y40: 1.02.3.01.03. Multas Superintendencias | AB40: 1.02.2.30. Renovación de la capacidad de laboratorios | AE40: 1.02.1.04.27. Arancel judicial - Ley 1394 de 2010
A41: 150103 | B41: MINISTERIO DE DEFENSA NACIONAL - EJERCITO | D41: FONDO ESPECIAL REGISTRO UNICO NACIONAL DE TRANSITO - RUNT | E41: 6066 | V41: Derechos de registro | W41: 40 | Y41: 1.02.3.01.04. Comparendos | AB41: 1.02.2.31. Realización de exámenes de laboratorio | AE41: 1.02.1.04.28. Arancel judicial CSJ - Ley 1653 de 2013
A42: 150104 | B42: MINISTERIO DE DEFENSA NACIONAL - ARMADA | D42: FONDO DE MODERNIZACION, DESCONGESTION YBIENESTAR DE LA ADMINISTRACIÓN DE JUSTICIA | E42: 6067 | V42: Permiso para el uso del espectro radioeléctrico | W42: 42 | Y42: 1.02.3.01.05. Otras multas | AB42: 1.02.2.32. Expedición de certificados de registro sanitario | AE42: 1.02.1.04.29. Arancel judicial - Ley 1743 de 2014
A43: 150105 | B43: MINISTERIO DE DEFENSA NACIONAL - FUERZA AEREA | D43: FONDO ESPECIAL IMPUESTO SOBRE LA RENTA PARA LA EQUIDAD - CREE | E43: 6069 | V43: Permiso por tenencia y porte de armas | W43: 43 | Y43: 1.02.3.01.06. Sanciones Tributarias | AB43: 1.02.2.33. Peajes | AE43: 1.02.1.04.30. Contribución especial arbitral
A44: 150111 | B44: MINISTERIO DE DEFENSA NACIONAL - SALUD | D44: FONDO NACIONAL DE BOMBEROS DE COLOMBIA | E44: 6070 | V44: Derecho de ingreso áreas protegidas | W44: 44 | Y44: 1.02.3.01.07. Sanciones Aduaneras | AB44: 1.02.2.34. Permiso para transporte de carga | AE44: 1.02.1.04.31. Contribución especial para laudos arbitrales de contenido económico
A45: 150112 | B45: MINISTERIO DE DEFENSA NACIONAL - DIRECCION GENERAL MARITIMA - DIMAR | D45: FONDOS MINISTERIO DE JUSTICIA | E45: 6071 | V45: Servicios de asistencia técnica en materia metrológica | W45: 45 | Y45: 1.02.3.01.08. Sanciones Cambiarias | AB45: 1.02.2.35. Autorización para el uso de materiales radiactivos y nucleares | AE45: 1.02.1.04.36. Aporte afiliados al Sistema General de Pensiones - Subcuenta de Solidaridad
A46: 150113 | B46: MINISTERIO DE DEFENSA NACIONAL DIRECCION CENTRO DE REHABILITACION INCLUSIVA - DCRI | D46: FONDO ESPECIAL PARA LA ADMINISTRACIÓN DE BIENES DE LA FISCALÍA GENERAL DE LA NACIÓN | E46: 6072 | V46: Capacitación en metrología | W46: 46 | Y46: 1.02.3.01.09. Sanciones Disciplinarias | AB46: 1.02.2.36. Evaluación de licencias y trámites ambientales | AE46: 1.02.1.04.37. Aporte afiliados al Sistema General de Pensiones - Subcuenta de Subsistencia
A47: 150300 | B47: CAJA DE RETIRO DE LAS FUERZAS MILITARES | D47: FONDO DESARROLLO PEQUEÑA Y MEDIANA MINERÍA (ART. 151 LEY 1530 DE 2012) | E47: 6073 | V47: Calibración y medición metrológica | W47: 47 | Y47: 1.02.3.01.10. Sanciones Contractuales | AB47: 1.02.2.37. Seguimiento a licencias y trámites ambientales | AE47: 1.02.1.04.38. Aportes diferenciales - Fondo de Solidaridad Pensional
A48: 150700 | B48: INSTITUTO CASAS FISCALES DEL EJERCITO | D48: FONDO ESPECIAL DE PENSIONES TELECOM, INRAVISIÓN Y TELEASOCIADAS | E48: 6074 | V48: Comparación interlaboratorios | W48: 48 | Y48: 1.02.3.01.11. Sanciones Comerciales | AB48: 1.02.2.38. Tasa de inspección y vigilancia – Superintendencia Nacional de Salud | AE48: 1.02.1.04.39. Aporte pensionados - Fondo de Solidaridad Pensional
A49: 150800 | B49: DEFENSA CIVIL COLOMBIANA, GUILLERMO LEÓN VALENCIA | D49: FONDO NACIONAL DE LAS UNIVERSIDADES ESTATALES DE COLOMBIA | E49: 6075 | V49: Comercialización de materiales de referencia | W49: 49 | Y49: 1.02.3.01.12. Sanciones Administrativas y Fiscales | AB49: 1.02.2.39. Expedición de tarjetas profesionales | AE49: 1.02.1.04.41. Contribución cultural a la boletería de los espectáculos públicos
A50: 151000 | B50: CLUB MILITAR DE OFICIALES | D50: FONDO DE ENERGÍAS NO CONVENCIONALES Y GESTIÓN EFICIENTE DE LA ENERGÍA | E50: 6077 | V50: Explotación de las concesiones de televisión | W50: 51 | AB50: 1.02.2.40. Derechos de registro | AE50: 1.02.1.04.42. Recursos por la explotación de juegos de suerte y azar – Fondo de Investigación en Salud
A51: 151100 | B51: CAJA DE SUELDOS DE RETIRO DE LA POLICIA NACIONAL | D51: FONDO DE RESTITUCION DE TIERRAS DESPOJADAS | E51: 6078 | V51: Derechos de aeródromo | W51: 53 | AB51: 1.02.2.42. Permiso para el uso del espectro radioeléctrico | AE51: 1.02.1.04.43. Contribución - Fondo Industria de la Construcción (FIC)
A52: 151201 | B52: FONPOLICIA - GESTION GENERAL | D52: FONDO ESTABILIZACIÓN DE PRECIOS DE LOS COMBUSTIBLES | V52: Tasas aeroportuarias | W52: 54 | Y52: DERECHOS ECONÓMICOS POR USO DE RECURSOS NATURALES- EP | AB52: 1.02.2.43. Permiso por tenencia y porte de armas | AE52: 1.02.1.04.44. Contribución SOAT - Fondo Nacional de Seguridad Vial
A53: 151600 | B53: SUPERINTENDENCIA DE VIGILANCIA Y SEGURIDAD PRIVADA | Y53: 1.02.4.01. Derecho económico por uso del subsuelo | AB53: 1.02.2.44. Derecho de ingreso áreas protegidas | AE53: 1.02.1.04.46. Contribución - Fondo de Seguridad y Convivencia
A54: 151900 | B54: HOSPITAL MILITAR | D54: FONDO DE REPARACIÓN DE VÍCTIMAS | E54: 321 | V54: TASAS Y DERECHOS ADMINISTRATIVOS - FE | W54: CÓD | Y54: 1.02.4.02. Concesiones mineras | AB54: 1.02.2.45. Servicios de asistencia técnica en materia metrológica
A55: 152000 | B55: AGENCIA LOGISTICA DE LAS FUERZAS MILITARES | D55: FONDO EMPRENDER | E55: 322 | V55: Autorización para el manejo de sustancias químicas controladas | W55: 41 | Y55: 1.02.4.03. Contraprestaciones portuarias | AB55: 1.02.2.46. Capacitación en metrología
A56: 160101 | B56: POLICIA NACIONAL - GESTION GENERAL | D56: FONDO NACIONAL DE SEGURIDAD VIAL | E56: 323 | V56: Tasa para la sostenibilidad del RUNT | W56: 50 | Y56: 1.02.4.05. Concesiones parques naturales | AB56: 1.02.2.47. Calibración y medición metrológica
A57: 160102 | B57: POLICIA NACIONAL - SALUD | D57: FONDO FISCALIZACIÓN MINERA | E57: 324 | V57: Fiscalización y seguimiento a títulos mineros | W57: 52 | AB57: 1.02.2.48. Comparación interlaboratorios
A58: 170101 | B58: MINAGRICULTURA - GESTION GENERAL | D58: FONDO VIVIENDA- SENA | E58: 325 | AB58: 1.02.2.49. Comercialización de materiales de referencia
A59: 170106 | B59: UNIDAD DE PLANIFICACIÓN DE TIERRAS RURALES, ADECUACIÓN DE TIERRAS Y USOS AGROPECUARIOS UPRA | D59: FONDO VIVIENDA- SUPERINTENDENCIA NOTARIADO Y REGISTRO | E59: 326 | Y59: TRANSFERENCIAS CORRIENTES- EP | AB59: 1.02.2.51. Explotación de las concesiones de televisión
A60: 170200 | B60: INSTITUTO COLOMBIANO AGROPECUARIO (ICA) | D60: FONDO INDUSTRIA DE LA CONSTRUCCIÓN | E60: 327 | Y60: 1.02.6.01. Indemnizaciones relacionadas con seguros no de vida | AB60: 1.02.2.53. Derechos de aeródromo
A61: 171500 | B61: AUTORIDAD NACIONAL DE ACUICULTURA Y PESCA - AUNAP | D61: FONDO NOTARIAS DECRETO 1672 DE 1997 | E61: 328 | Y61: 1.02.6.02. Sentencias y conciliaciones | AB61: 1.02.2.54. Tasas aeroportuarias
A62: 171600 | B62: UNIDAD ADMINISTRATIVA ESPECIAL DE GESTIÓN DE RESTITUCIÓN DE TIERRAS DESPOJADAS | D62: FONDOS INPEC | E62: 329 | Y62: 1.02.6.04. Devolución IVA - Instituciones de educación superior
A63: 171700 | B63: AGENCIA NACIONAL DE TIERRAS - ANT | D63: FONDO CONTRA LA EXPLOTACIÓN SEXUAL DE MENORES | E63: 3210 | Y63: 1.02.6.05. Transferencias de otras unidades de gobierno
A64: 171800 | B64: AGENCIA DE DESARROLLO RURAL - ADR | Y64: 1.02.6.07. Recursos por bienes mostrencos y vocaciones hereditarias
A65: 190101 | B65: MINISTERIO DE SALUD Y PROTECCION SOCIAL - GESTIÓN GENERAL | D65: FONDO DE PRESTACIONES SOCIALES DEL MAGISTERIO | E65: 501 | Y65: 1.02.6.09. Compensación UPC – SSS
A66: 190106 | B66: MINISTERIO DE SALUD Y PROTECCION SOCIAL - UNIDAD ADMINISTRATIVA ESPECIAL FONDO NACIONAL DE ESTUPEFACIENTES | D66: CONTRIBUCIÓN ESPECTÁCULOS PÚBLICOS (ART. 7 LEY 1493 DE 2011) | E66: 502
A67: 190109 | B67: MINISTERIO DE SALUD Y PROTECCION SOCIAL - INSTITUTO NACIONAL DE CANCEROLOGIA
A68: 190110 | B68: MINISTERIO DE SALUD Y PROTECCION SOCIAL - SANATORIO DE CONTRATACION | Y68: CONTRIBUCIONES SOCIALES -FE
A69: 190111 | B69: MINISTERIO DE SALUD Y PROTECCION SOCIAL - SANATORIO DE AGUA DE DIOS | Y69: 1.02.1.01.01. Salud
A70: 190112 | B70: MINISTERIO DE SALUD Y PROTECCION SOCIAL - CENTRO DERMATOLOGICO FEDERICO LLERAS ACOSTA | Y70: 1.02.1.01.02. Pensión
A71: 190114 | B71: DIRECCIÓN DE ADMINISTRACIÓN DE FONDOS DE LA PROTECCIÓN SOCIAL
A72: 190115 | B72: ADMINISTRADORA DE LOS RECURSOS DEL SISTEMA GENERAL DE SEGURIDAD SOCIAL EN SALUD - SGSSS - ADRES
A73: 190300 | B73: INSTITUTO NACIONAL DE SALUD (INS) | Y73: CONTRIBUCIONES ASOCIADAS A NÓMINA -FE
A74: 191000 | B74: SUPERINTENDENCIA NACIONAL DE SALUD | Y74: 1.02.1.02.04. Escuelas industriales e institutos técnicos
A75: 191200 | B75: INSTITUTO NACIONAL DE VIGILANCIA DE MEDICAMENTOS Y ALIMENTOS - INVIMA | Y75: 1.02.1.02.05. Aportes de cesantías
A76: 191301 | B76: FONDO DE PREVISION SOCIAL DEL CONGRESO - PENSIONES | D76: FONDO DE RIESGOS PROFESIONALES
A77: 191302 | B77: FONDO DE PREVISION SOCIAL DEL CONGRESO - CESANTIAS Y VIVIENDA | D77: FONDO DE TRANSFERENCIAS ICFES
A78: 191401 | B78: FONDO PASIVO SOCIAL DE FERROCARRILES NACIONALES DE COLOMBIA - SALUD | D78: FONDO RENTAS MONOPOLIO PARA EL SECTOR SALUD - LEY 643 DE 2001
A79: 191402 | B79: FONDO PASIVO SOCIAL DE FERROCARRILES NACIONALES DE COLOMBIA -PENSIONES | D79: FONDO PARA EL PAGO DE PASIVOS LABORALES DE LAS PERSONAS PRESTADORAS DE LOS SERVICIOS PUBLICOS LIQUIDADAS Y/O TRANSFORMADAS EN EL MARCO DE LOS PDA, ARTICULO 21 DE LA LEY 1450 DE 2011
A80: 210101 | B80: MINISTERIO DE MINAS Y ENERGIA - GESTION GENERAL
A81: 210113 | B81: MINISTERIO DE MINAS Y ENERGIA - COMISION DE REGULACION DE ENERGIA Y GAS - CREG -
A82: 210300 | B82: SERVICIO GEOLÓGICO COLOMBIANO
A83: 210900 | B83: UNIDAD DE PLANEACION MINERO ENERGETICA - UPME
A84: 211000 | B84: INSTITUTO DE PLANIFICACION Y PROMOCION DE SOLUCIONES ENERGETICAS PARA LAS ZONAS NO INTERCONECTADAS -IPSE-
A85: 211100 | B85: AGENCIA NACIONAL DE HIDROCARBUROS - ANH
A86: 211200 | B86: AGENCIA NACIONAL DE MINERÍA - ANM
A87: 220101 | B87: MINISTERIO EDUCACION NACIONAL - GESTION GENERAL
A88: 220900 | B88: INSTITUTO NACIONAL PARA SORDOS (INSOR)
A89: 221000 | B89: INSTITUTO NACIONAL PARA CIEGOS (INCI)
A90: 223400 | B90: ESCUELA TECNOLOGICA INSTITUTO TECNICO CENTRAL
A91: 223800 | B91: INSTITUTO NACIONAL DE FORMACION TECNICA PROFESIONAL DE SAN ANDRES Y PROVIDENCIA
A92: 223900 | B92: INSTITUTO NACIONAL DE FORMACION TECNICA PROFESIONAL DE SAN JUAN DEL CESAR
A93: 224100 | B93: INSTITUTO TOLIMENSE DE FORMACION TECNICA PROFESIONAL
A94: 224200 | B94: INSTITUTO TECNICO NACIONAL DE COMERCIO SIMON RODRIGUEZ DE CALI
A95: 230101 | B95: MINISTERIO DE TECNOLOGIAS DE LA INFORMACION Y LAS COMUNICACIONES - GESTION GENERAL
A96: 230103 | B96: MINISTERIO DE TECNOLOGIAS DE LA INFORMACION Y LAS COMUNICACIONES - UNIDAD ADMINISTRATIVA ESPECIAL COMISION DE REGULACION DE COMUNICACIONES
A97: 230600 | B97: FONDO DE TECNOLOGIAS DE LA INFORMACION Y LAS COMUNICACIONES
A98: 230900 | B98: AGENCIA NACIONAL DEL ESPECTRO - ANE
A99: 231000 | B99: AUTORIDAD NACIONAL DE TELEVISION ANTV
A100: 231700 | B100: COMPUTADORES PARA EDUCAR
A101: 240101 | B101: MINISTERIO DE TRANSPORTE - GESTION GENERAL
A102: 240106 | B102: MINISTERIO DE TRANSPORTE - CORPORACION AUTONOMA REGIONAL DEL RIO GRANDE DE LA MAGDALENA - CORMAGDALENA
A103: 240200 | B103: INSTITUTO NACIONAL DE VIAS
A104: 241200 | B104: UNIDAD ADMINISTRATIVA ESPECIAL DE LA AERONAUTICA CIVIL
A105: 241300 | B105: AGENCIA NACIONAL DE INFRAESTRUCTURA
A106: 241400 | B106: UNIDAD DE PLANEACION DEL SECTOR DE INFRAESTRUCTURA DE TRANSPORTE
A107: 241500 | B107: COMISION DE REGULACION DE INFRAESTRUCTURA Y TRANSPORTE
A108: 241600 | B108: AGENCIA NACIONAL DE SEGURIDAD VIAL
A109: 241700 | B109: SUPERINTENDENCIA DE PUERTOS Y TRANSPORTE
A110: 250101 | B110: PROCURADURIA GENERAL DE LA NACIÓN - GESTION GENERAL
A111: 250105 | B111: MINISTERIO PUBLICO - INSTITUTO DE ESTUDIOS DEL MINISTERIO PUBLICO
A112: 250200 | B112: DEFENSORIA DEL PUEBLO
A113: 260101 | B113: CONTRALORIA GRAL. REPUBLICA - GESTION GENERAL
A114: 260200 | B114: FONDO DE BIENESTAR SOCIAL DE LA CONTRALORIA GENERAL DE LA REPUBLICA
A115: 270102 | B115: RAMA JUDICIAL - CONSEJO SUPERIOR DE LA JUDICATURA
A116: 270103 | B116: RAMA JUDICIAL - CORTE SUPREMA DE JUSTICIA
A117: 270104 | B117: RAMA JUDICIAL - CONSEJO DE ESTADO
A118: 270105 | B118: RAMA JUDICIAL - CORTE CONSTITUCIONAL
A119: 270108 | B119: RAMA JUDICIAL - TRIBUNALES Y JUZGADOS
A120: 280101 | B120: REGISTRADURIA NACIONAL DEL ESTADO CIVIL - GESTION GENERAL
A121: 280102 | B121: REGISTRADURIA NACIONAL DEL ESTADO CIVIL - CONSEJO NACIONAL ELECTORAL
A122: 280200 | B122: FONDO ROTATORIO DE LA REGISTRADURIA
A123: 280300 | B123: FONDO SOCIAL DE VIVIENDA DE LA REGISTRADURIA NACIONAL DEL ESTADO CIVIL
A124: 290101 | B124: FISCALIA GENERAL DE LA NACION - GESTION GENERAL
A125: 290200 | B125: INSTITUTO NACIONAL DE MEDICINA LEGAL Y CIENCIAS FORENSES
A126: 320101 | B126: MINISTERIO DE AMBIENTE Y DESARROLLO SOSTENIBLE - GESTION GENERAL
A127: 320102 | B127: PARQUES NACIONALES NATURALES DE COLOMBIA
A128: 320104 | B128: AUTORIDAD NACIONAL DE LICENCIAS AMBIENTALES ANLA
A129: 320200 | B129: INSTITUTO DE HIDROLOGIA, METEOROLOGIA Y ESTUDIOS AMBIENTALES- IDEAM
A130: 320401 | B130: FONAM - GESTION GENERAL
A131: 320800 | B131: CORPORACION AUTONOMA REGIONAL DE LOS VALLES DEL SINU Y SAN JORGE (CVS)
A132: 320900 | B132: CORPORACION AUTONOMA REGIONAL DEL QUINDIO (CRQ)
A133: 321000 | B133: CORPORACION PARA EL DESARROLLO SOSTENIBLE DEL URABA - CORPOURABA
A134: 321100 | B134: CORPORACION AUTONOMA REGIONAL DE CALDAS (CORPOCALDAS)
A135: 321200 | B135: CORPORACION AUTONOMA REGIONAL PARA EL DESARROLLO SOSTENIBLE DEL CHOCO - CODECHOCO
A136: 321300 | B136: CORPORACION AUTONOMA REGIONAL PARA LA DEFENSA DE LA MESETA DE BUCARAMANGA CDMB
A137: 321400 | B137: CORPORACION AUTONOMA REGIONAL DEL TOLIMA (CORTOLIMA)
A138: 321500 | B138: CORPORACION AUTONOMA REGIONAL DE RISARALDA (CARDER)
A139: 321600 | B139: CORPORACION AUTONOMA REGIONAL DE NARINO (CORPONARINO)
A140: 321700 | B140: CORPORACION AUTONOMA REGIONAL DE LA FRONTERA NORORIENTAL (CORPONOR)
A141: 321800 | B141: CORPORACION AUTONOMA REGIONAL DE LA GUAJIRA (CORPOGUAJIRA)
A142: 321900 | B142: CORPORACION AUTONOMA REGIONAL DEL CESAR (CORPOCESAR)
A143: 322100 | B143: CORPORACION AUTONOMA REGIONAL DEL CAUCA (CRC)
A144: 322200 | B144: CORPORACION AUTONOMA REGIONAL DEL MAGDALENA (CORPAMAG)
A145: 322300 | B145: CORPORACION PARA EL DESARROLLO SOSTENIBLE DEL SUR DE LA AMAZONIA - CORPOAMAZONIA
A146: 322400 | B146: CORPORACION PARA EL DESARROLLO SOSTENIBLE DEL NORTE Y ORIENTE DE LA AMAZONIA - CDA
A147: 322600 | B147: CORPORACION PARA EL DESARROLLO SOSTENIBLE DEL ARCHIPIELAGO DE SAN ANDRES, PROVIDENCIA Y SANTA CATALINA - CORALINA
A148: 322700 | B148: CORPORACION PARA EL DESARROLLO SOSTENIBLE DEL AREA DE MANEJO ESPECIAL LA MACARENA - CORMACARENA
A149: 322800 | B149: CORPORACION PARA EL DESARROLLO SOSTENIBLE DE LA MOJANA Y EL SAN JORGE - CORPOMOJANA
A150: 322900 | B150: CORPORACION AUTONOMA REGIONAL DE LA ORINOQUIA (CORPORINOQUIA)
A151: 323000 | B151: CORPORACION AUTONOMA REGIONAL DE SUCRE (CARSUCRE)
A152: 323100 | B152: CORPORACION AUTONOMA REGIONAL DEL ALTO MAGDALENA (CAM)
A153: 323200 | B153: CORPORACION AUTONOMA REGIONAL DEL CENTRO DE ANTIOQUIA (CORANTIOQUIA)
A154: 323300 | B154: CORPORACION AUTONOMA REGIONAL DEL ATLANTICO - CRA
A155: 323400 | B155: CORPORACION AUTONOMA REGIONAL DE SANTANDER (CAS)
A156: 323500 | B156: CORPORACION AUTONOMA REGIONAL DE BOYACA (CORPOBOYACA)
A157: 323600 | B157: CORPORACION AUTONOMA REGIONAL DE CHIVOR (CORPOCHIVOR)
A158: 323700 | B158: CORPORACION AUTONOMA REGIONAL DEL GUAVIO (CORPOGUAVIO)
A159: 323800 | B159: CORPORACION AUTONOMA REGIONAL DEL CANAL DEL DIQUE (CARDIQUE)
A160: 323900 | B160: CORPORACION AUTONOMA REGIONAL DEL SUR DE BOLIVAR (CSB)
A161: 330101 | B161: MINISTERIO DE CULTURA - GESTION GENERAL
A162: 330400 | B162: ARCHIVO GENERAL DE LA NACION
A163: 330500 | B163: INSTITUTO COLOMBIANO DE ANTROPOLOGIA E HISTORIA
A164: 330700 | B164: INSTITUTO CARO Y CUERVO
A165: 340101 | B165: AUDITORIA GENERAL DE LA REPUBLICA - GESTION GENERAL
A166: 350101 | B166: MINCOMERCIO INDUSTRIA TURISMO - GESTION GENERAL
A167: 350102 | B167: MINCOMERCIO INDUSTRIA TURISMO - DIRECCION GENERAL DE COMERCIO EXTERIOR
A168: 350104 | B168: MINCOMERCIO INDUSTRIA TURISMO - ARTESANIAS DE COLOMBIA S.A.
A169: 350200 | B169: SUPERINTENDENCIA DE SOCIEDADES
A170: 350300 | B170: SUPERINTENDENCIA DE INDUSTRIA Y COMERCIO
A171: 350400 | B171: UNIDAD ADMINISTRATIVA ESPECIAL JUNTA CENTRAL CONTADORES
A172: 350500 | B172: INSTITUTO NACIONAL DE METROLOGÍA - INM
A173: 360101 | B173: MINISTERIO DEL TRABAJO - GESTION GENERAL
A174: 360107 | B174: MINISTERIO DEL TRABAJO - SUPERINTENDENCIA DE SUBSIDIO FAMILIAR
A175: 360200 | B175: SERVICIO NACIONAL DE APRENDIZAJE (SENA)
A176: 361200 | B176: UNIDAD ADMINISTRATIVA ESPECIAL DE ORGANIZACIONES SOLIDARIAS
A177: 361300 | B177: UNIDAD ADMINISTRATIVA ESPECIAL DEL SERVICIO PUBLICO DE EMPLEO
A178: 370101 | B178: MINISTERIO DEL INTERIOR - GESTIÓN GENERAL
A179: 370300 | B179: DIRECCION NACIONAL DEL DERECHO DE AUTOR
A180: 370400 | B180: CORPORACION NACIONAL PARA LA RECONSTRUCCION DE LA CUENCA DEL RIO PAEZ Y ZONAS ALEDANAS NASA KI WE
A181: 370800 | B181: UNIDAD NACIONAL DE PROTECCION - UNP
A182: 370900 | B182: DIRECCION NACIONAL DE BOMBEROS
A183: 380100 | B183: COMISION NACIONAL DEL SERVICIO CIVIL
A184: 390101 | B184: DEPARTAMENTO ADMINISTRATIVO DE LA CIENCIA, TECNOLOGIA E INNOVACION - GESTION GENERAL
A185: 400101 | B185: MINISTERIO DE VIVIENDA, CIUDAD Y TERRITORIO - GESTIÓN GENERAL
A186: 400102 | B186: COMISION DE REGULACION DE AGUA POTABLE Y SANEAMIENTO BÁSICO CRA
A187: 400200 | B187: FONDO NACIONAL DE VIVIENDA - FONVIVIENDA
A188: 410101 | B188: DEPARTAMENTO ADMINISTRATIVO PARA LA PROSPERIDAD SOCIAL - GESTIÓN GENERAL
A189: 410400 | B189: UNIDAD DE ATENCIÓN Y REPARACIÓN INTEGRAL A LAS VICTIMAS
A190: 410500 | B190: CENTRO DE MEMORIA HISTÓRICA
A191: 410600 | B191: INSTITUTO COLOMBIANO DE BIENESTAR FAMILIAR (ICBF)
A192: 420101 | B192: DEPARTAMENTO ADMINISTRATIVO DIRECCIÓN NACIONAL DE INTELIGENCIA - GESTIÓN GENERAL
A193: 430101 | B193: DEPARTAMENTO ADMINISTRATIVO DEL DEPORTE, LA RECREACIÓN, LA ACTIVIDAD FÍSICA Y EL APROVECHAMIENTO DEL TIEMPO LIBRE – COLDEPORTES - GESTIÓN GENERAL
A194: 440101 | B194: JURISDICCIÓN ESPECIAL PARA LA PAZ
A195: 440200 | B195: COMISIÓN PARA EL ESCLARECIMIENTO DE LA VERDAD, LA CONVIVENCIA Y LA NO REPETICIÓN
A196: 440300 | B196: UNIDAD DE BÚSQUEDA DE PERSONAS DADAS POR DESAPARECIDAS EN EL CONTEXTO Y EN RAZÓN DEL CONFLICTO ARMADO - UBDP
